Workbook

Sheet Sheet3
A1: Chromosome | B1: Start | C1: End | D1: Width | E1: R1D0 | F1: R2D0 | G1: R3D0 | H1: R1D1 | I1: R2D1 | J1: R3D1 | K1: R1D2 | L1: R2D2 | M1: R3D2 | N1: Average d0 | O1: Average d1 | P1: Average d2 | Q1: Conc d0 | R1: Conc d1 | S1: logFC d1/d0 | T1: p-value d1/d0 | U1: FDR d1/d0 | V1: Conc d2 | W1: logFC d2/d0 | X1: p-value d2/d0 | Y1: FDR d2/d0 | Z1: Average>250;FDR<0.1? | AA1: Distance to TSS | AB1: Nearest gene | AC1: Gene description | AD1: Protein coding? | AE1: Target 500 bp? | AF1: Target 500 kb? | AG1: TSS? | AH1: Proximal enhancer? | AI1: Distal enhancer? | AJ1: VDR overlap?
A2: 7 | B2: 100586310 | C2: 100586510 | D2: 201 | E2: 1814.85 | F2: 1551.47 | G2: 1770.15 | H2: 2691.44 | I2: 2012.86 | J2: 3533.40 | K2: 3235.55 | L2: 2221.02 | M2: 3362.92 | N2: =AVERAGE(E2:G2) -> 1712.15 | O2: =AVERAGE(H2:J2) -> 2745.90 | P2: =AVERAGE(K2:M2) -> 2939.83 | Q2: 10.7416 | R2: 11.4231 | S2: 0.68 | T2: 0.0052 | U2: 0.0279 | V2: 11.5215 | W2: 0.78 | X2: 0.0006 | Y2: 0.0942 | Z2: Yes | AA2: 82 | AB2: FBXO24 | AC2: F-box protein 24 | AD2: Yes | AE2: No | AF2: No | AG2: Yes | AH2: No | AI2: No | AJ2: No
A3: 2 | B3: 239401147 | C3: 239401347 | D3: 201 | E3: 1413.56 | F3: 1010.41 | G3: 1396.14 | H3: 2269.87 | I3: 1843.03 | J3: 2560.82 | K3: 2503.64 | L3: 1792.19 | M3: 2468.83 | N3: =AVERAGE(E3:G3) -> 1273.37 | O3: =AVERAGE(H3:J3) -> 2224.57 | P3: =AVERAGE(K3:M3) -> 2254.89 | Q3: 10.3144 | R3: 11.1193 | S3: 0.80 | T3: 0.0005 | U3: 0.0240 | V3: 11.1388 | W3: 0.82 | X3: 0.0008 | Y3: 0.0942 | Z3: Yes | AA3: -189 | AB3: HDAC4-AS1 | AC3: HDAC4 antisense RNA 1 | AD3: No | AE3: No | AF3: No | AG3: Yes | AH3: No | AI3: No | AJ3: No
A4: X | B4: 154368869 | C4: 154369069 | D4: 201 | E4: 397.40 | F4: 345.09 | G4: 404.05 | H4: 673.57 | I4: 645.84 | J4: 738.41 | K4: 801.54 | L4: 525.67 | M4: 810.12 | N4: =AVERAGE(E4:G4) -> 382.18 | O4: =AVERAGE(H4:J4) -> 685.94 | P4: =AVERAGE(K4:M4) -> 712.44 | Q4: 8.5781 | R4: 9.4219 | S4: 0.84 | T4: 0.0001 | U4: 0.0240 | V4: 9.4766 | W4: 0.90 | X4: 0.0012 | Y4: 0.0942 | Z4: Yes | AA4: 5665 | AB4: FLNA | AC4: filamin A | AD4: Yes | AE4: No | AF4: No | AG4: No | AH4: Yes | AI4: No | AJ4: No
A5: 9 | B5: 297607 | C5: 297807 | D5: 201 | E5: 97.09 | F5: 151.04 | G5: 158.46 | H5: 188.52 | I5: 222.45 | J5: 232.29 | K5: 294.00 | L5: 199.82 | M5: 312.88 | N5: =AVERAGE(E5:G5) -> 135.53 | O5: =AVERAGE(H5:J5) -> 214.42 | P5: =AVERAGE(K5:M5) -> 268.90 | Q5: 7.0825 | R5: 7.7443 | S5: 0.66 | T5: 0.0168 | U5: 0.0457 | V5: 8.0709 | W5: 0.99 | X5: 0.0013 | Y5: 0.0942 | Z5: No | AA5: 24659 | AB5: DOCK8 | AC5: dedicator of cytokinesis 8 | AD5: Yes | AE5: No | AF5: No | AG5: No | AH5: No | AI5: Yes | AJ5: No
A6: 15 | B6: 90886023 | C6: 90886223 | D6: 201 | E6: 59.55 | F6: 47.80 | G6: 74.35 | H6: 103.26 | I6: 151.89 | J6: 100.09 | K6: 153.19 | L6: 86.07 | M6: 150.11 | N6: =AVERAGE(E6:G6) -> 60.56 | O6: =AVERAGE(H6:J6) -> 118.41 | P6: =AVERAGE(K6:M6) -> 129.79 | Q6: 5.9204 | R6: 6.8877 | S6: 0.97 | T6: 0.0029 | U6: 0.0246 | V6: 7.0200 | W6: 1.10 | X6: 0.0014 | Y6: 1.0000 | Z6: No | AA6: 1077 | AB6: FES | AC6: FES proto-oncogene, tyrosine kinase | AD6: Yes | AE6: No | AF6: No | AG6: No | AH6: Yes | AI6: No | AJ6: No
A7: 1 | B7: 25330061 | C7: 25330261 | D7: 201 | E7: 29.77 | F7: 21.99 | G7: 39.80 | H7: 56.84 | I7: 61.00 | J7: 81.21 | K7: 92.84 | L7: 49.19 | M7: 77.87 | N7: =AVERAGE(E7:G7) -> 30.52 | O7: =AVERAGE(H7:J7) -> 66.35 | P7: =AVERAGE(K7:M7) -> 73.30 | Q7: 4.9317 | R7: 6.0520 | S7: 1.12 | T7: 0.0043 | U7: 0.0264 | V7: 6.1957 | W7: 1.26 | X7: 0.0014 | Y7: 1.0000 | Z7: No | AA7: 8093 | AB7: RSRP1 | AC7: arginine and serine rich protein 1 | AD7: Yes | AE7: No | AF7: Yes | AG7: No | AH7: Yes | AI7: No | AJ7: No
A8: 8 | B8: 125191908 | C8: 125192108 | D8: 201 | E8: 23.30 | F8: 40.15 | G8: 54.07 | H8: 68.21 | I8: 59.80 | J8: 109.53 | K8: 123.79 | L8: 50.72 | M8: 122.90 | N8: =AVERAGE(E8:G8) -> 39.17 | O8: =AVERAGE(H8:J8) -> 79.18 | P8: =AVERAGE(K8:M8) -> 99.14 | Q8: 5.2918 | R8: 6.3071 | S8: 1.02 | T8: 0.0129 | U8: 0.0398 | V8: 6.6314 | W8: 1.34 | X8: 0.0014 | Y8: 1.0000 | Z8: No | AA8: 100148 | AB8: NSMCE2 | AC8: NSE2 (MMS21) homolog, SMC5-SMC6 complex SUMO ligase | AD8: Yes | AE8: No | AF8: No | AG8: No | AH8: No | AI8: Yes | AJ8: No
A9: 3 | B9: 196082044 | C9: 196082244 | D9: 201 | E9: 85.43 | F9: 71.69 | G9: 101.39 | H9: 160.10 | I9: 177.01 | J9: 169.97 | K9: 182.59 | L9: 133.72 | M9: 187.64 | N9: =AVERAGE(E9:G9) -> 86.17 | O9: =AVERAGE(H9:J9) -> 169.03 | P9: =AVERAGE(K9:M9) -> 167.98 | Q9: 6.4292 | R9: 7.4011 | S9: 0.97 | T9: 0.0004 | U9: 0.0240 | V9: 7.3922 | W9: 0.96 | X9: 0.0014 | Y9: 1.0000 | Z9: No | AA9: -54 | AB9: TFRC | AC9: transferrin receptor | AD9: Yes | AE9: No | AF9: Yes | AG9: Yes | AH9: No | AI9: No | AJ9: Yes
A10: 7 | B10: 151756160 | C10: 151756360 | D10: 201 | E10: 58.25 | F10: 72.65 | G10: 79.61 | H10: 96.63 | I10: 139.93 | J10: 135.97 | K10: 148.55 | L10: 106.06 | M10: 169.81 | N10: =AVERAGE(E10:G10) -> 70.17 | O10: =AVERAGE(H10:J10) -> 124.18 | P10: =AVERAGE(K10:M10) -> 141.47 | Q10: 6.1328 | R10: 6.9563 | S10: 0.82 | T10: 0.0081 | U10: 0.0325 | V10: 7.1444 | W10: 1.01 | X10: 0.0014 | Y10: 1.0000 | Z10: No | AA10: -19946 | AB10: PRKAG2 | AC10: protein kinase AMP-activated non-catalytic subunit gamma 2 | AD10: Yes | AE10: No | AF10: No | AG10: No | AH10: No | AI10: Yes | AJ10: No
A11: 17 | B11: 2400987 | C11: 2401187 | D11: 201 | E11: 80.26 | F11: 76.47 | G11: 78.86 | H11: 174.31 | I11: 173.42 | J11: 126.53 | K11: 164.02 | L11: 126.04 | M11: 157.15 | N11: =AVERAGE(E11:G11) -> 78.53 | O11: =AVERAGE(H11:J11) -> 158.09 | P11: =AVERAGE(K11:M11) -> 149.07 | Q11: 6.2952 | R11: 7.3046 | S11: 1.01 | T11: 0.0003 | U11: 0.0240 | V11: 7.2198 | W11: 0.92 | X11: 0.0015 | Y11: 1.0000 | Z11: No | AA11: -27 | AB11: MNT | AC11: MAX network transcriptional repressor | AD11: Yes | AE11: No | AF11: No | AG11: Yes | AH11: No | AI11: No | AJ11: No
A12: 4 | B12: 2536321 | C12: 2536521 | D12: 201 | E12: 836.23 | F12: 656.72 | G12: 941.78 | H12: 1355.67 | I12: 1276.13 | J12: 1435.27 | K12: 1449.88 | L12: 1148.17 | M12: 1824.30 | N12: =AVERAGE(E12:G12) -> 811.57 | O12: =AVERAGE(H12:J12) -> 1355.69 | P12: =AVERAGE(K12:M12) -> 1474.12 | Q12: 9.6646 | R12: 10.4048 | S12: 0.74 | T12: 0.0006 | U12: 0.0240 | V12: 10.5256 | W12: 0.86 | X12: 0.0015 | Y12: 0.0942 | Z12: Yes | AA12: -226 | AB12: FAM193A | AC12: family with sequence similarity 193 member A | AD12: Yes | AE12: No | AF12: No | AG12: Yes | AH12: No | AI12: No | AJ12: No
A13: 12 | B13: 122226091 | C13: 122226291 | D13: 201 | E13: 1003.21 | F13: 733.19 | G13: 1176.09 | H13: 1856.82 | I13: 1380.18 | J13: 1829.97 | K13: 1920.28 | L13: 1281.89 | M13: 2208.95 | N13: =AVERAGE(E13:G13) -> 970.83 | O13: =AVERAGE(H13:J13) -> 1688.99 | P13: =AVERAGE(K13:M13) -> 1803.71 | Q13: 9.9231 | R13: 10.7219 | S13: 0.80 | T13: 0.0009 | U13: 0.0240 | V13: 10.8168 | W13: 0.89 | X13: 0.0016 | Y13: 0.0942 | Z13: Yes | AA13: -139 | AB13: DIABLO | AC13: diablo IAP-binding mitochondrial protein | AD13: Yes | AE13: No | AF13: No | AG13: Yes | AH13: No | AI13: No | AJ13: No
A14: 2 | B14: 238203577 | C14: 238203777 | D14: 201 | E14: 204.53 | F14: 172.07 | G14: 232.82 | H14: 395.05 | I14: 371.95 | J14: 300.27 | K14: 444.09 | L14: 312.02 | M14: 365.89 | N14: =AVERAGE(E14:G14) -> 203.14 | O14: =AVERAGE(H14:J14) -> 355.76 | P14: =AVERAGE(K14:M14) -> 374.00 | Q14: 7.6663 | R14: 8.4748 | S14: 0.81 | T14: 0.0008 | U14: 0.0240 | V14: 8.5469 | W14: 0.88 | X14: 0.0016 | Y14: 0.0942 | Z14: Yes | AA14: 18 | AB14: ILKAP | AC14: ILK associated serine/threonine phosphatase | AD14: Yes | AE14: No | AF14: No | AG14: Yes | AH14: No | AI14: No | AJ14: No
A15: 1 | B15: 159854773 | C15: 159854973 | D15: 201 | E15: 146.28 | F15: 132.87 | G15: 220.05 | H15: 348.63 | I15: 356.41 | J15: 266.28 | K15: 329.59 | L15: 239.78 | M15: 432.03 | N15: =AVERAGE(E15:G15) -> 166.40 | O15: =AVERAGE(H15:J15) -> 323.77 | P15: =AVERAGE(K15:M15) -> 333.80 | Q15: 7.3785 | R15: 8.3388 | S15: 0.96 | T15: 0.0004 | U15: 0.0240 | V15: 8.3828 | W15: 1.00 | X15: 0.0016 | Y15: 0.0942 | Z15: Yes | AA15: 164 | AB15: SNHG28 | AC15: small nucleolar RNA host gene 28 | AD15: No | AE15: No | AF15: No | AG15: Yes | AH15: No | AI15: No | AJ15: Yes
A16: 2 | B16: 86719870 | C16: 86720070 | D16: 201 | E16: 464.71 | F16: 416.78 | G16: 456.62 | H16: 754.10 | I16: 606.37 | J16: 834.72 | K16: 851.05 | L16: 650.17 | M16: 824.19 | N16: =AVERAGE(E16:G16) -> 446.04 | O16: =AVERAGE(H16:J16) -> 731.73 | P16: =AVERAGE(K16:M16) -> 775.14 | Q16: 8.8010 | R16: 9.5152 | S16: 0.71 | T16: 0.0011 | U16: 0.0240 | V16: 9.5983 | W16: 0.80 | X16: 0.0018 | Y16: 0.0942 | Z16: Yes | AA16: -321 | AB16: RMND5A | AC16: required for meiotic nuclear division 5 homolog A | AD16: Yes | AE16: No | AF16: No | AG16: Yes | AH16: No | AI16: No | AJ16: No
A17: 17 | B17: 4167849 | C17: 4168049 | D17: 201 | E17: 14.24 | F17: 13.38 | G17: 24.03 | H17: 25.58 | I17: 39.47 | J17: 45.32 | K17: 57.25 | L17: 30.74 | M17: 49.25 | N17: =AVERAGE(E17:G17) -> 17.22 | O17: =AVERAGE(H17:J17) -> 36.79 | P17: =AVERAGE(K17:M17) -> 45.75 | Q17: 4.1059 | R17: 5.2013 | S17: 1.10 | T17: 0.0270 | U17: 1.0000 | V17: 5.5157 | W17: 1.41 | X17: 0.0018 | Y17: 1.0000 | Z17: No | AA17: 24252 | AB17: CYB5D2 | AC17: cytochrome b5 domain containing 2 | AD17: Yes | AE17: No | AF17: No | AG17: No | AH17: No | AI17: Yes | AJ17: No
A18: 14 | B18: 105490926 | C18: 105491126 | D18: 201 | E18: 1680.22 | F18: 1558.16 | G18: 1564.37 | H18: 2380.71 | I18: 1872.93 | J18: 3108.49 | K18: 2936.91 | L18: 2019.67 | M18: 2836.60 | N18: =AVERAGE(E18:G18) -> 1600.92 | O18: =AVERAGE(H18:J18) -> 2454.04 | P18: =AVERAGE(K18:M18) -> 2597.72 | Q18: 10.6447 | R18: 11.2609 | S18: 0.62 | T18: 0.0083 | U18: 0.0329 | V18: 11.3430 | W18: 0.70 | X18: 0.0019 | Y18: 0.0942 | Z18: Yes | AA18: -220 | AB18: TEDC1 | AC18: tubulin epsilon and delta complex 1 | AD18: Yes | AE18: No | AF18: No | AG18: Yes | AH18: No | AI18: No | AJ18: No
A19: 12 | B19: 6852389 | C19: 6852589 | D19: 201 | E19: 1342.36 | F19: 1045.78 | G19: 1447.96 | H19: 2203.56 | I19: 1737.78 | J19: 2694.90 | K19: 2327.24 | L19: 1638.48 | M19: 2716.51 | N19: =AVERAGE(E19:G19) -> 1278.70 | O19: =AVERAGE(H19:J19) -> 2212.08 | P19: =AVERAGE(K19:M19) -> 2227.41 | Q19: 10.3205 | R19: 11.1112 | S19: 0.79 | T19: 0.0009 | U19: 0.0240 | V19: 11.1212 | W19: 0.80 | X19: 0.0019 | Y19: 0.0942 | Z19: Yes | AA19: 339 | AB19: USP5 | AC19: ubiquitin specific peptidase 5 | AD19: Yes | AE19: No | AF19: Yes | AG19: Yes | AH19: No | AI19: No | AJ19: No
A20: 16 | B20: 20741775 | C20: 20741975 | D20: 201 | E20: 405.17 | F20: 259.06 | G20: 417.57 | H20: 630.94 | I20: 691.28 | J20: 596.77 | K20: 823.20 | L20: 539.50 | M20: 683.47 | N20: =AVERAGE(E20:G20) -> 360.60 | O20: =AVERAGE(H20:J20) -> 639.66 | P20: =AVERAGE(K20:M20) -> 682.06 | Q20: 8.4942 | R20: 9.3212 | S20: 0.83 | T20: 0.0006 | U20: 0.0240 | V20: 9.4137 | W20: 0.92 | X20: 0.0020 | Y20: 0.0942 | Z20: Yes | AA20: -57 | AB20: THUMPD1 | AC20: THUMP domain containing 1 | AD20: Yes | AE20: No | AF20: No | AG20: Yes | AH20: No | AI20: No | AJ20: No
A21: 5 | B21: 151771636 | C21: 151771836 | D21: 201 | E21: 1867.92 | F21: 1844.94 | G21: 1744.62 | H21: 2700.92 | I21: 2130.07 | J21: 3654.27 | K21: 3337.67 | L21: 2279.43 | M21: 3096.94 | N21: =AVERAGE(E21:G21) -> 1819.16 | O21: =AVERAGE(H21:J21) -> 2828.42 | P21: =AVERAGE(K21:M21) -> 2904.68 | Q21: 10.8291 | R21: 11.4658 | S21: 0.64 | T21: 0.0077 | U21: 0.0320 | V21: 11.5042 | W21: 0.68 | X21: 0.0020 | Y21: 0.0942 | Z21: Yes | AA21: -218 | AB21: G3BP1 | AC21: G3BP stress granule assembly factor 1 | AD21: Yes | AE21: No | AF21: No | AG21: Yes | AH21: No | AI21: No | AJ21: No
A22: 9 | B22: 35657823 | C22: 35658023 | D22: 201 | E22: 213.59 | F22: 212.22 | G22: 282.38 | H22: 431.05 | I22: 467.63 | J22: 502.34 | K22: 468.85 | L22: 356.59 | M22: 453.61 | N22: =AVERAGE(E22:G22) -> 236.06 | O22: =AVERAGE(H22:J22) -> 467.01 | P22: =AVERAGE(K22:M22) -> 426.35 | Q22: 7.8830 | R22: 8.8673 | S22: 0.98 | T22: 0.0000 | U22: 0.0240 | V22: 8.7359 | W22: 0.85 | X22: 0.0020 | Y22: 0.0942 | Z22: Yes | AA22: 95 | AB22: RMRP | AC22: RNA component of mitochondrial RNA processing endoribonuclease | AD22: No | AE22: No | AF22: No | AG22: Yes | AH22: No | AI22: No | AJ22: No
A23: 20 | B23: 675580 | C23: 675780 | D23: 201 | E23: 22.01 | F23: 26.77 | G23: 48.07 | H23: 39.79 | I23: 62.19 | J23: 94.43 | K23: 75.82 | L23: 52.26 | M23: 106.01 | N23: =AVERAGE(E23:G23) -> 32.28 | O23: =AVERAGE(H23:J23) -> 65.47 | P23: =AVERAGE(K23:M23) -> 78.03 | Q23: 5.0125 | R23: 6.0327 | S23: 1.02 | T23: 0.0233 | U23: 0.0542 | V23: 6.2860 | W23: 1.27 | X23: 0.0020 | Y23: 1.0000 | Z23: No | AA23: 122 | AB23: SCRT2 | AC23: scratch family transcriptional repressor 2 | AD23: Yes | AE23: No | AF23: No | AG23: Yes | AH23: No | AI23: No | AJ23: No
A24: 12 | B24: 53180472 | C24: 53180672 | D24: 201 | E24: 616.17 | F24: 471.27 | G24: 664.65 | H24: 1016.52 | I24: 965.17 | J24: 1187.87 | K24: 1109.46 | L24: 788.50 | M24: 1317.68 | N24: =AVERAGE(E24:G24) -> 584.03 | O24: =AVERAGE(H24:J24) -> 1056.52 | P24: =AVERAGE(K24:M24) -> 1071.88 | Q24: 9.1899 | R24: 10.0451 | S24: 0.86 | T24: 0.0001 | U24: 0.0240 | V24: 10.0659 | W24: 0.88 | X24: 0.0021 | Y24: 0.0942 | Z24: Yes | AA24: 74 | AB24: CSAD | AC24: cysteine sulfinic acid decarboxylase | AD24: Yes | AE24: No | AF24: No | AG24: Yes | AH24: No | AI24: No | AJ24: Yes
A25: 14 | B25: 91194405 | C25: 91194605 | D25: 201 | E25: 12.94 | F25: 25.81 | G25: 26.29 | H25: 54.95 | I25: 45.45 | J25: 58.54 | K25: 63.44 | L25: 38.43 | M25: 59.57 | N25: =AVERAGE(E25:G25) -> 21.68 | O25: =AVERAGE(H25:J25) -> 52.98 | P25: =AVERAGE(K25:M25) -> 53.81 | Q25: 4.4383 | R25: 5.7274 | S25: 1.29 | T25: 0.0026 | U25: 0.0244 | V25: 5.7499 | W25: 1.31 | X25: 0.0021 | Y25: 1.0000 | Z25: No | AA25: 50199 | AB25: GPR68 | AC25: G protein-coupled receptor 68 | AD25: Yes | AE25: No | AF25: No | AG25: No | AH25: No | AI25: Yes | AJ25: No
A26: X | B26: 47145044 | C26: 47145244 | D26: 201 | E26: 393.52 | F26: 331.71 | G26: 414.56 | H26: 612.94 | I26: 643.44 | J26: 708.19 | K26: 798.44 | L26: 528.74 | M26: 716.77 | N26: =AVERAGE(E26:G26) -> 379.93 | O26: =AVERAGE(H26:J26) -> 654.86 | P26: =AVERAGE(K26:M26) -> 681.32 | Q26: 8.5696 | R26: 9.3550 | S26: 0.79 | T26: 0.0003 | U26: 0.0240 | V26: 9.4122 | W26: 0.84 | X26: 0.0021 | Y26: 0.0942 | Z26: Yes | AA26: 66 | AB26: NDUFB11 | AC26: NADH:ubiquinone oxidoreductase subunit B11 | AD26: Yes | AE26: No | AF26: Yes | AG26: Yes | AH26: No | AI26: No | AJ26: No
A27: 7 | B27: 44959691 | C27: 44959891 | D27: 201 | E27: 58.25 | F27: 62.14 | G27: 74.35 | H27: 90.95 | I27: 118.40 | J27: 141.64 | K27: 133.07 | L27: 99.91 | M27: 147.76 | N27: =AVERAGE(E27:G27) -> 64.91 | O27: =AVERAGE(H27:J27) -> 117.00 | P27: =AVERAGE(K27:M27) -> 126.92 | Q27: 6.0204 | R27: 6.8703 | S27: 0.85 | T27: 0.0074 | U27: 0.0314 | V27: 6.9877 | W27: 0.97 | X27: 0.0021 | Y27: 1.0000 | Z27: No | AA27: 19224 | AB27: MYO1G | AC27: myosin IG | AD27: Yes | AE27: No | AF27: No | AG27: No | AH27: No | AI27: Yes | AJ27: No
A28: 3 | B28: 182793405 | C28: 182793605 | D28: 201 | E28: 126.86 | F28: 100.37 | G28: 172.73 | H28: 248.21 | I28: 302.59 | J28: 190.74 | K28: 300.19 | L28: 204.43 | M28: 262.69 | N28: =AVERAGE(E28:G28) -> 133.32 | O28: =AVERAGE(H28:J28) -> 247.18 | P28: =AVERAGE(K28:M28) -> 255.77 | Q28: 7.0588 | R28: 7.9494 | S28: 0.89 | T28: 0.0019 | U28: 0.0240 | V28: 7.9987 | W28: 0.94 | X28: 0.0021 | Y28: 0.0942 | Z28: No | AA28: 1 | AB28: ATP11B | AC28: ATPase phospholipid transporting 11B (putative) | AD28: Yes | AE28: No | AF28: No | AG28: Yes | AH28: No | AI28: No | AJ28: No
A29: 9 | B29: 131729361 | C29: 131729561 | D29: 201 | E29: 71.20 | F29: 64.05 | G29: 90.12 | H29: 141.16 | I29: 139.93 | J29: 152.97 | K29: 139.26 | L29: 124.50 | M29: 167.93 | N29: =AVERAGE(E29:G29) -> 75.12 | O29: =AVERAGE(H29:J29) -> 144.69 | P29: =AVERAGE(K29:M29) -> 143.90 | Q29: 6.2312 | R29: 7.1768 | S29: 0.95 | T29: 0.0010 | U29: 0.0240 | V29: 7.1689 | W29: 0.94 | X29: 0.0022 | Y29: 1.0000 | Z29: No | AA29: 7986 | AB29: RAPGEF1 | AC29: Rap guanine nucleotide exchange factor 1 | AD29: Yes | AE29: No | AF29: No | AG29: No | AH29: Yes | AI29: No | AJ29: No
A30: 8 | B30: 87283407 | C30: 87283607 | D30: 201 | E30: 6.47 | F30: 9.56 | G30: 2.25 | H30: 2.84 | I30: 0.00 | J30: 3.78 | K30: 0.00 | L30: 0.00 | M30: 0.00 | N30: =AVERAGE(E30:G30) -> 6.09 | O30: =AVERAGE(H30:J30) -> 2.21 | P30: =AVERAGE(K30:M30) -> 0.00 | Q30: 2.6076 | R30: 1.1417 | S30: -1.47 | T30: 0.2077 | U30: 1.0000 | V30: 0.0000 | W30: -2.61 | X30: 0.0023 | Y30: 1.0000 | Z30: No | AA30: 417092 | AB30: CNBD1 | AC30: cyclic nucleotide binding domain containing 1 | AD30: Yes | AE30: No | AF30: No | AG30: No | AH30: No | AI30: Yes | AJ30: No
A31: 6 | B31: 26158054 | C31: 26158254 | D31: 201 | E31: 161.81 | F31: 128.09 | G31: 194.51 | H31: 237.79 | I31: 321.72 | J31: 302.16 | K31: 317.21 | L31: 236.70 | M31: 339.15 | N31: =AVERAGE(E31:G31) -> 161.47 | O31: =AVERAGE(H31:J31) -> 287.22 | P31: =AVERAGE(K31:M31) -> 297.69 | Q31: 7.3351 | R31: 8.1660 | S31: 0.83 | T31: 0.0015 | U31: 0.0240 | V31: 8.2177 | W31: 0.88 | X31: 0.0023 | Y31: 0.0942 | Z31: Yes | AA31: 32 | AB31: H2BC5 | AC31: H2B clustered histone 5 | AD31: Yes | AE31: No | AF31: No | AG31: Yes | AH31: No | AI31: No | AJ31: No
A32: 19 | B32: 18478993 | C32: 18479193 | D32: 201 | E32: 62.13 | F32: 71.69 | G32: 81.11 | H32: 133.58 | I32: 145.91 | J32: 185.07 | K32: 162.47 | L32: 87.61 | M32: 192.33 | N32: =AVERAGE(E32:G32) -> 71.65 | O32: =AVERAGE(H32:J32) -> 154.85 | P32: =AVERAGE(K32:M32) -> 147.47 | Q32: 6.1628 | R32: 7.2748 | S32: 1.11 | T32: 0.0001 | U32: 0.0240 | V32: 7.2043 | W32: 1.04 | X32: 0.0024 | Y32: 1.0000 | Z32: No | AA32: -40960 | AB32: ISYNA1 | AC32: inositol-3-phosphate synthase 1 | AD32: Yes | AE32: No | AF32: No | AG32: No | AH32: No | AI32: Yes | AJ32: No
A33: 2 | B33: 10043353 | C33: 10043553 | D33: 201 | E33: 235.59 | F33: 164.42 | G33: 292.90 | H33: 503.99 | I33: 471.22 | J33: 294.61 | K33: 498.25 | L33: 336.61 | M33: 488.32 | N33: =AVERAGE(E33:G33) -> 230.97 | O33: =AVERAGE(H33:J33) -> 423.27 | P33: =AVERAGE(K33:M33) -> 441.06 | Q33: 7.8516 | R33: 8.7255 | S33: 0.87 | T33: 0.0021 | U33: 0.0241 | V33: 8.7848 | W33: 0.93 | X33: 0.0024 | Y33: 0.0942 | Z33: Yes | AA33: -52 | AB33: KLF11-DT | AC33: KLF11 divergent transcript | AD33: No | AE33: Yes | AF33: Yes | AG33: Yes | AH33: No | AI33: No | AJ33: Yes
A34: 2 | B34: 44168452 | C34: 44168652 | D34: 201 | E34: 1558.54 | F34: 1216.89 | G34: 1571.88 | H34: 2320.08 | I34: 1901.63 | J34: 2974.40 | K34: 2630.53 | L34: 1878.26 | M34: 2648.49 | N34: =AVERAGE(E34:G34) -> 1449.10 | O34: =AVERAGE(H34:J34) -> 2398.70 | P34: =AVERAGE(K34:M34) -> 2385.76 | Q34: 10.5009 | R34: 11.2280 | S34: 0.73 | T34: 0.0020 | U34: 0.0240 | V34: 11.2202 | W34: 0.72 | X34: 0.0024 | Y34: 0.0942 | Z34: Yes | AA34: -251 | AB34: PPM1B | AC34: protein phosphatase, Mg2+/Mn2+ dependent 1B | AD34: Yes | AE34: No | AF34: No | AG34: Yes | AH34: No | AI34: No | AJ34: No
A35: 17 | B35: 6936480 | C35: 6936680 | D35: 201 | E35: 9.06 | F35: 15.29 | G35: 7.51 | H35: 28.42 | I35: 28.70 | J35: 47.21 | K35: 34.04 | L35: 21.52 | M35: 36.59 | N35: =AVERAGE(E35:G35) -> 10.62 | O35: =AVERAGE(H35:J35) -> 34.78 | P35: =AVERAGE(K35:M35) -> 30.72 | Q35: 3.4090 | R35: 5.1201 | S35: 1.71 | T35: 0.0012 | U35: 1.0000 | V35: 4.9409 | W35: 1.53 | X35: 0.0024 | Y35: 1.0000 | Z35: No | AA35: 42803 | AB35: ALOX12P2 | AC35: arachidonate 12-lipoxygenase pseudogene 2 | AD35: No | AE35: No | AF35: No | AG35: No | AH35: No | AI35: Yes | AJ35: No
A36: 11 | B36: 9460764 | C36: 9460964 | D36: 201 | E36: 1344.95 | F36: 964.53 | G36: 1443.46 | H36: 2112.61 | I36: 1651.67 | J36: 2866.76 | K36: 2409.25 | L36: 1540.11 | M36: 2699.62 | N36: =AVERAGE(E36:G36) -> 1250.98 | O36: =AVERAGE(H36:J36) -> 2210.34 | P36: =AVERAGE(K36:M36) -> 2216.33 | Q36: 10.2888 | R36: 11.1101 | S36: 0.82 | T36: 0.0014 | U36: 0.0240 | V36: 11.1140 | W36: 0.83 | X36: 0.0025 | Y36: 0.0942 | Z36: Yes | AA36: -101 | AB36: ZNF143 | AC36: zinc finger protein 143 | AD36: Yes | AE36: No | AF36: No | AG36: Yes | AH36: No | AI36: No | AJ36: No
A37: 5 | B37: 112922187 | C37: 112922387 | D37: 201 | E37: 90.61 | F37: 86.03 | G37: 102.89 | H37: 163.89 | I37: 186.58 | J37: 128.42 | K37: 162.47 | L37: 139.87 | M37: 220.94 | N37: =AVERAGE(E37:G37) -> 93.18 | O37: =AVERAGE(H37:J37) -> 159.63 | P37: =AVERAGE(K37:M37) -> 174.43 | Q37: 6.5419 | R37: 7.3186 | S37: 0.78 | T37: 0.0051 | U37: 0.0276 | V37: 7.4465 | W37: 0.90 | X37: 0.0025 | Y37: 1.0000 | Z37: No | AA37: -60 | AB37: REEP5 | AC37: receptor accessory protein 5 | AD37: Yes | AE37: No | AF37: No | AG37: Yes | AH37: No | AI37: No | AJ37: No
A38: 9 | B38: 3525922 | C38: 3526122 | D38: 201 | E38: 231.71 | F38: 214.13 | G38: 292.15 | H38: 467.99 | I38: 474.81 | J38: 402.25 | K38: 470.40 | L38: 371.96 | M38: 466.28 | N38: =AVERAGE(E38:G38) -> 245.99 | O38: =AVERAGE(H38:J38) -> 448.35 | P38: =AVERAGE(K38:M38) -> 436.21 | Q38: 7.9425 | R38: 8.8085 | S38: 0.87 | T38: 0.0002 | U38: 0.0240 | V38: 8.7689 | W38: 0.83 | X38: 0.0025 | Y38: 0.0942 | Z38: Yes | AA38: -21 | AB38: RFX3 | AC38: regulatory factor X3 | AD38: Yes | AE38: No | AF38: No | AG38: Yes | AH38: No | AI38: No | AJ38: No
A39: 10 | B39: 69090112 | C39: 69090312 | D39: 201 | E39: 188.99 | F39: 132.87 | G39: 234.32 | H39: 335.36 | I39: 349.23 | J39: 404.14 | K39: 362.08 | L39: 265.91 | M39: 441.42 | N39: =AVERAGE(E39:G39) -> 185.39 | O39: =AVERAGE(H39:J39) -> 362.91 | P39: =AVERAGE(K39:M39) -> 356.47 | Q39: 7.5345 | R39: 8.5035 | S39: 0.97 | T39: 0.0002 | U39: 0.0240 | V39: 8.4776 | W39: 0.94 | X39: 0.0025 | Y39: 0.0942 | Z39: Yes | AA39: 2109 | AB39: SRGN | AC39: serglycin | AD39: Yes | AE39: No | AF39: Yes | AG39: No | AH39: Yes | AI39: No | AJ39: No
A40: 14 | B40: 91060713 | C40: 91060913 | D40: 201 | E40: 1161.14 | F40: 793.42 | G40: 1269.22 | H40: 1884.30 | I40: 1698.31 | J40: 2326.64 | K40: 2019.32 | L40: 1458.65 | M40: 2180.81 | N40: =AVERAGE(E40:G40) -> 1074.59 | O40: =AVERAGE(H40:J40) -> 1969.75 | P40: =AVERAGE(K40:M40) -> 1886.26 | Q40: 10.0696 | R40: 10.9438 | S40: 0.87 | T40: 0.0003 | U40: 0.0240 | V40: 10.8813 | W40: 0.81 | X40: 0.0026 | Y40: 0.0942 | Z40: Yes | AA40: -164 | AB40: RPS6KA5 | AC40: ribosomal protein S6 kinase A5 | AD40: Yes | AE40: No | AF40: No | AG40: Yes | AH40: No | AI40: No | AJ40: No
A41: 8 | B41: 125219350 | C41: 125219550 | D41: 201 | E41: 33.66 | F41: 39.19 | G41: 38.30 | H41: 86.21 | I41: 80.13 | J41: 83.09 | K41: 74.27 | L41: 55.33 | M41: 109.30 | N41: =AVERAGE(E41:G41) -> 37.05 | O41: =AVERAGE(H41:J41) -> 83.15 | P41: =AVERAGE(K41:M41) -> 79.64 | Q41: 5.2114 | R41: 6.3776 | S41: 1.17 | T41: 0.0005 | U41: 0.0240 | V41: 6.3153 | W41: 1.10 | X41: 0.0026 | Y41: 1.0000 | Z41: No | AA41: 127590 | AB41: NSMCE2 | AC41: NSE2 (MMS21) homolog, SMC5-SMC6 complex SUMO ligase | AD41: Yes | AE41: No | AF41: No | AG41: No | AH41: No | AI41: Yes | AJ41: No
A42: 2 | B42: 69914762 | C42: 69914962 | D42: 201 | E42: 1210.33 | F42: 1058.21 | G42: 1366.10 | H42: 1889.03 | I42: 1590.67 | J42: 2851.65 | K42: 2310.22 | L42: 1463.26 | M42: 2499.79 | N42: =AVERAGE(E42:G42) -> 1211.55 | O42: =AVERAGE(H42:J42) -> 2110.45 | P42: =AVERAGE(K42:M42) -> 2091.09 | Q42: 10.2426 | R42: 11.0433 | S42: 0.80 | T42: 0.0015 | U42: 0.0240 | V42: 11.0300 | W42: 0.79 | X42: 0.0026 | Y42: 0.0942 | Z42: Yes | AA42: -179 | AB42: MXD1 | AC42: MAX dimerization protein 1 | AD42: Yes | AE42: No | AF42: No | AG42: Yes | AH42: No | AI42: No | AJ42: No
A43: 18 | B43: 13577434 | C43: 13577634 | D43: 201 | E43: 51.78 | F43: 74.56 | G43: 80.36 | H43: 90.95 | I43: 124.38 | J43: 211.51 | K43: 167.12 | L43: 98.37 | M43: 148.70 | N43: =AVERAGE(E43:G43) -> 68.90 | O43: =AVERAGE(H43:J43) -> 142.28 | P43: =AVERAGE(K43:M43) -> 138.06 | Q43: 6.1064 | R43: 7.1526 | S43: 1.05 | T43: 0.0035 | U43: 0.0253 | V43: 7.1092 | W43: 1.00 | X43: 0.0026 | Y43: 1.0000 | Z43: No | AA43: -33580 | AB43: MIR4526 | AC43: microRNA 4526 | AD43: No | AE43: No | AF43: No | AG43: No | AH43: No | AI43: Yes | AJ43: No
A44: 3 | B44: 13621797 | C44: 13621997 | D44: 201 | E44: 146.28 | F44: 129.05 | G44: 134.43 | H44: 222.63 | I44: 203.32 | J44: 270.06 | K44: 224.37 | L44: 196.74 | M44: 333.52 | N44: =AVERAGE(E44:G44) -> 136.59 | O44: =AVERAGE(H44:J44) -> 232.00 | P44: =AVERAGE(K44:M44) -> 251.54 | Q44: 7.0937 | R44: 7.8580 | S44: 0.76 | T44: 0.0022 | U44: 0.0241 | V44: 7.9747 | W44: 0.88 | X44: 0.0026 | Y44: 0.0942 | Z44: No | AA44: 3516 | AB44: SNORA93 | AC44: small nucleolar RNA, H/ACA box 93 | AD44: No | AE44: No | AF44: Yes | AG44: No | AH44: Yes | AI44: No | AJ44: No
A45: X | B45: 13653032 | C45: 13653232 | D45: 201 | E45: 141.10 | F45: 116.62 | G45: 162.97 | H45: 266.21 | I45: 261.92 | J45: 222.84 | K45: 303.28 | L45: 202.89 | M45: 262.22 | N45: =AVERAGE(E45:G45) -> 140.23 | O45: =AVERAGE(H45:J45) -> 250.32 | P45: =AVERAGE(K45:M45) -> 256.13 | Q45: 7.1317 | R45: 7.9677 | S45: 0.84 | T45: 0.0009 | U45: 0.0240 | V45: 8.0007 | W45: 0.87 | X45: 0.0026 | Y45: 0.0942 | Z45: Yes | AA45: -9 | AB45: TCEANC | AC45: transcription elongation factor A N-terminal and central domain containing | AD45: Yes | AE45: No | AF45: No | AG45: Yes | AH45: No | AI45: No | AJ45: No
A46: 9 | B46: 86946463 | C46: 86946663 | D46: 201 | E46: 97.09 | F46: 86.03 | G46: 123.17 | H46: 190.42 | I46: 241.59 | J46: 117.09 | K46: 249.13 | L46: 159.85 | M46: 174.03 | N46: =AVERAGE(E46:G46) -> 102.10 | O46: =AVERAGE(H46:J46) -> 183.03 | P46: =AVERAGE(K46:M46) -> 194.34 | Q46: 6.6738 | R46: 7.5160 | S46: 0.84 | T46: 0.0063 | U46: 0.0298 | V46: 7.6024 | W46: 0.93 | X46: 0.0026 | Y46: 1.0000 | Z46: No | AA46: 943 | AB46: GAS1 | AC46: growth arrest specific 1 | AD46: Yes | AE46: No | AF46: No | AG46: No | AH46: Yes | AI46: No | AJ46: No
A47: 16 | B47: 53503320 | C47: 53503520 | D47: 201 | E47: 1401.91 | F47: 1307.71 | G47: 1543.34 | H47: 2070.93 | I47: 1654.06 | J47: 3100.93 | K47: 2550.06 | L47: 1712.26 | M47: 2838.47 | N47: =AVERAGE(E47:G47) -> 1417.65 | O47: =AVERAGE(H47:J47) -> 2275.31 | P47: =AVERAGE(K47:M47) -> 2366.93 | Q47: 10.4693 | R47: 11.1518 | S47: 0.68 | T47: 0.0071 | U47: 0.0309 | V47: 11.2088 | W47: 0.74 | X47: 0.0027 | Y47: 0.0942 | Z47: Yes | AA47: -116 | AB47: AKTIP | AC47: AKT interacting protein | AD47: Yes | AE47: No | AF47: No | AG47: Yes | AH47: No | AI47: No | AJ47: No
A48: 18 | B48: 9136485 | C48: 9136685 | D48: 201 | E48: 794.80 | F48: 578.33 | G48: 885.45 | H48: 1364.20 | I48: 1207.95 | J48: 1202.98 | K48: 1452.98 | L48: 1092.83 | M48: 1390.86 | N48: =AVERAGE(E48:G48) -> 752.86 | O48: =AVERAGE(H48:J48) -> 1258.38 | P48: =AVERAGE(K48:M48) -> 1312.22 | Q48: 9.5562 | R48: 10.2973 | S48: 0.74 | T48: 0.0010 | U48: 0.0240 | V48: 10.3578 | W48: 0.80 | X48: 0.0027 | Y48: 0.0942 | Z48: Yes | AA48: 135 | AB48: NDUFV2-AS1 | AC48: NDUFV2 antisense RNA 1 | AD48: No | AE48: No | AF48: Yes | AG48: Yes | AH48: No | AI48: No | AJ48: No
A49: 4 | B49: 184649397 | C49: 184649597 | D49: 201 | E49: 727.49 | F49: 670.10 | G49: 791.57 | H49: 1357.56 | I49: 1103.90 | J49: 1218.09 | K49: 1239.44 | L49: 979.09 | M49: 1583.65 | N49: =AVERAGE(E49:G49) -> 729.72 | O49: =AVERAGE(H49:J49) -> 1226.52 | P49: =AVERAGE(K49:M49) -> 1267.40 | Q49: 9.5112 | R49: 10.2604 | S49: 0.75 | T49: 0.0003 | U49: 0.0240 | V49: 10.3077 | W49: 0.80 | X49: 0.0027 | Y49: 0.0942 | Z49: Yes | AA49: -22 | AB49: CASP3 | AC49: caspase 3 | AD49: Yes | AE49: No | AF49: No | AG49: Yes | AH49: No | AI49: No | AJ49: No
A50: 1 | B50: 6026162 | C50: 6026362 | D50: 201 | E50: 291.26 | F50: 246.63 | G50: 383.77 | H50: 531.47 | I50: 596.80 | J50: 566.55 | K50: 538.48 | L50: 461.11 | M50: 691.44 | N50: =AVERAGE(E50:G50) -> 307.22 | O50: =AVERAGE(H50:J50) -> 564.94 | P50: =AVERAGE(K50:M50) -> 563.68 | Q50: 8.2631 | R50: 9.1420 | S50: 0.88 | T50: 0.0002 | U50: 0.0240 | V50: 9.1387 | W50: 0.88 | X50: 0.0027 | Y50: 0.0942 | Z50: Yes | AA50: -71 | AB50: KCNAB2 | AC50: potassium voltage-gated channel subfamily A regulatory beta subunit 2 | AD50: Yes | AE50: No | AF50: No | AG50: Yes | AH50: No | AI50: No | AJ50: Yes
A51: 12 | B51: 52203235 | C51: 52203435 | D51: 201 | E51: 77.67 | F51: 83.17 | G51: 120.91 | H51: 130.74 | I51: 155.48 | J51: 209.62 | K51: 232.11 | L51: 107.59 | M51: 248.62 | N51: =AVERAGE(E51:G51) -> 93.92 | O51: =AVERAGE(H51:J51) -> 165.28 | P51: =AVERAGE(K51:M51) -> 196.11 | Q51: 6.5533 | R51: 7.3688 | S51: 0.82 | T51: 0.0085 | U51: 0.0331 | V51: 7.6155 | W51: 1.06 | X51: 0.0027 | Y51: 1.0000 | Z51: No | AA51: 7495 | AB51: LINC02874 | AC51: long intergenic non-protein coding RNA 2874 | AD51: No | AE51: No | AF51: No | AG51: No | AH51: Yes | AI51: No | AJ51: No
A52: 1 | B52: 230067025 | C52: 230067225 | D52: 201 | E52: 441.41 | F52: 373.77 | G52: 568.52 | H52: 909.46 | I52: 795.34 | J52: 564.66 | K52: 826.30 | L52: 656.32 | M52: 1042.79 | N52: =AVERAGE(E52:G52) -> 461.23 | O52: =AVERAGE(H52:J52) -> 756.49 | P52: =AVERAGE(K52:M52) -> 841.80 | Q52: 8.8494 | R52: 9.5632 | S52: 0.71 | T52: 0.0047 | U52: 0.0271 | V52: 9.7173 | W52: 0.87 | X52: 0.0027 | Y52: 0.0942 | Z52: Yes | AA52: -113 | AB52: GALNT2 | AC52: polypeptide N-acetylgalactosaminyltransferase 2 | AD52: Yes | AE52: No | AF52: No | AG52: Yes | AH52: No | AI52: No | AJ52: No
A53: 14 | B53: 24634273 | C53: 24634473 | D53: 201 | E53: 332.68 | F53: 225.60 | G53: 319.18 | H53: 527.68 | I53: 431.75 | J53: 713.86 | K53: 524.56 | L53: 385.80 | M53: 791.83 | N53: =AVERAGE(E53:G53) -> 292.49 | O53: =AVERAGE(H53:J53) -> 557.76 | P53: =AVERAGE(K53:M53) -> 567.39 | Q53: 8.1922 | R53: 9.1235 | S53: 0.93 | T53: 0.0004 | U53: 0.0240 | V53: 9.1482 | W53: 0.96 | X53: 0.0028 | Y53: 0.0942 | Z53: Yes | AA53: -183 | AB53: GZMB | AC53: granzyme B | AD53: Yes | AE53: No | AF53: No | AG53: Yes | AH53: No | AI53: No | AJ53: No
A54: 1 | B54: 24930328 | C54: 24930528 | D54: 201 | E54: 481.54 | F54: 325.97 | G54: 495.67 | H54: 794.83 | I54: 753.48 | J54: 630.76 | K54: 818.56 | L54: 624.04 | M54: 910.04 | N54: =AVERAGE(E54:G54) -> 434.40 | O54: =AVERAGE(H54:J54) -> 726.36 | P54: =AVERAGE(K54:M54) -> 784.21 | Q54: 8.7629 | R54: 9.5045 | S54: 0.74 | T54: 0.0017 | U54: 0.0240 | V54: 9.6151 | W54: 0.85 | X54: 0.0029 | Y54: 0.0942 | Z54: Yes | AA54: -152 | AB54: RUNX3 | AC54: RUNX family transcription factor 3 | AD54: Yes | AE54: No | AF54: Yes | AG54: Yes | AH54: No | AI54: No | AJ54: Yes
A55: 4 | B55: 8409622 | C55: 8409822 | D55: 201 | E55: 642.06 | F55: 520.02 | G55: 452.11 | H55: 888.62 | I55: 669.76 | J55: 955.59 | K55: 1008.88 | L55: 790.04 | M55: 989.78 | N55: =AVERAGE(E55:G55) -> 538.06 | O55: =AVERAGE(H55:J55) -> 837.99 | P55: =AVERAGE(K55:M55) -> 929.57 | Q55: 9.0716 | R55: 9.7108 | S55: 0.64 | T55: 0.0064 | U55: 0.0300 | V55: 9.8604 | W55: 0.79 | X55: 0.0029 | Y55: 0.0942 | Z55: Yes | AA55: 18726 | AB55: ACOX3 | AC55: acyl-CoA oxidase 3, pristanoyl | AD55: Yes | AE55: No | AF55: No | AG55: No | AH55: No | AI55: Yes | AJ55: No
A56: 16 | B56: 50741784 | C56: 50741984 | D56: 201 | E56: 1080.88 | F56: 723.64 | G56: 1219.65 | H56: 1851.14 | I56: 1438.78 | J56: 2018.82 | K56: 1904.81 | L56: 1331.08 | M56: 2198.63 | N56: =AVERAGE(E56:G56) -> 1008.06 | O56: =AVERAGE(H56:J56) -> 1769.58 | P56: =AVERAGE(K56:M56) -> 1811.51 | Q56: 9.9774 | R56: 10.7892 | S56: 0.81 | T56: 0.0011 | U56: 0.0240 | V56: 10.8230 | W56: 0.85 | X56: 0.0029 | Y56: 0.0942 | Z56: Yes | AA56: -202 | AB56: CYLD | AC56: CYLD lysine 63 deubiquitinase | AD56: Yes | AE56: No | AF56: No | AG56: Yes | AH56: No | AI56: No | AJ56: No
A57: 12 | B57: 116916784 | C57: 116916984 | D57: 201 | E57: 97.09 | F57: 71.69 | G57: 126.17 | H57: 153.47 | I57: 123.19 | J57: 192.63 | K57: 181.04 | L57: 138.33 | M57: 273.01 | N57: =AVERAGE(E57:G57) -> 98.32 | O57: =AVERAGE(H57:J57) -> 156.43 | P57: =AVERAGE(K57:M57) -> 197.46 | Q57: 6.6194 | R57: 7.2894 | S57: 0.67 | T57: 0.0320 | U57: 0.0651 | V57: 7.6254 | W57: 1.01 | X57: 0.0029 | Y57: 1.0000 | Z57: No | AA57: 5928 | AB57: FBXW8 | AC57: F-box and WD repeat domain containing 8 | AD57: Yes | AE57: No | AF57: No | AG57: No | AH57: Yes | AI57: No | AJ57: No
A58: 1 | B58: 207321486 | C58: 207321686 | D58: 201 | E58: 526.85 | F58: 436.86 | G58: 713.47 | H58: 964.41 | I58: 757.06 | J58: 1382.39 | K58: 1143.51 | L58: 720.87 | M58: 1282.97 | N58: =AVERAGE(E58:G58) -> 559.06 | O58: =AVERAGE(H58:J58) -> 1034.62 | P58: =AVERAGE(K58:M58) -> 1049.11 | Q58: 9.1269 | R58: 10.0149 | S58: 0.89 | T58: 0.0011 | U58: 0.0240 | V58: 10.0350 | W58: 0.91 | X58: 0.0029 | Y58: 0.0942 | Z58: Yes | AA58: -92 | AB58: CD55 | AC58: CD55 molecule (Cromer blood group) | AD58: Yes | AE58: No | AF58: No | AG58: Yes | AH58: No | AI58: No | AJ58: Yes
A59: 2 | B59: 111122490 | C59: 111122690 | D59: 201 | E59: 174.75 | F59: 185.45 | G59: 250.84 | H59: 403.57 | I59: 394.68 | J59: 258.73 | K59: 411.60 | L59: 272.06 | M59: 451.74 | N59: =AVERAGE(E59:G59) -> 203.68 | O59: =AVERAGE(H59:J59) -> 352.33 | P59: =AVERAGE(K59:M59) -> 378.46 | Q59: 7.6702 | R59: 8.4608 | S59: 0.79 | T59: 0.0028 | U59: 0.0246 | V59: 8.5640 | W59: 0.89 | X59: 0.0029 | Y59: 0.0942 | Z59: Yes | AA59: 1676 | AB59: BCL2L11 | AC59: BCL2 like 11 | AD59: Yes | AE59: No | AF59: No | AG59: No | AH59: Yes | AI59: No | AJ59: No
A60: 4 | B60: 53431144 | C60: 53431344 | D60: 201 | E60: 16.83 | F60: 26.77 | G60: 18.02 | H60: 27.47 | I60: 41.86 | J60: 52.88 | K60: 54.16 | L60: 26.13 | M60: 74.59 | N60: =AVERAGE(E60:G60) -> 20.54 | O60: =AVERAGE(H60:J60) -> 40.74 | P60: =AVERAGE(K60:M60) -> 51.62 | Q60: 4.3603 | R60: 5.3483 | S60: 0.99 | T60: 0.0337 | U60: 1.0000 | V60: 5.6900 | W60: 1.33 | X60: 0.0029 | Y60: 1.0000 | Z60: No | AA60: 53603 | AB60: FIP1L1 | AC60: factor interacting with PAPOLA and CPSF1 | AD60: Yes | AE60: No | AF60: No | AG60: No | AH60: No | AI60: Yes | AJ60: No
A61: 5 | B61: 177426307 | C61: 177426507 | D61: 201 | E61: 1391.55 | F61: 975.04 | G61: 1538.84 | H61: 2113.56 | I61: 1962.63 | J61: 2762.89 | K61: 2562.44 | L61: 1647.71 | M61: 2564.99 | N61: =AVERAGE(E61:G61) -> 1301.81 | O61: =AVERAGE(H61:J61) -> 2279.69 | P61: =AVERAGE(K61:M61) -> 2258.38 | Q61: 10.3463 | R61: 11.1546 | S61: 0.81 | T61: 0.0009 | U61: 0.0240 | V61: 11.1411 | W61: 0.79 | X61: 0.0029 | Y61: 0.0942 | Z61: Yes | AA61: -269 | AB61: GRK6 | AC61: G protein-coupled receptor kinase 6 | AD61: Yes | AE61: No | AF61: No | AG61: Yes | AH61: No | AI61: No | AJ61: No
A62: 7 | B62: 106258967 | C62: 106259167 | D62: 201 | E62: 6.47 | F62: 8.60 | G62: 10.51 | H62: 17.05 | I62: 23.92 | J62: 30.22 | K62: 26.31 | L62: 29.20 | M62: 22.99 | N62: =AVERAGE(E62:G62) -> 8.53 | O62: =AVERAGE(H62:J62) -> 23.73 | P62: =AVERAGE(K62:M62) -> 26.16 | Q62: 3.0925 | R62: 4.5686 | S62: 1.48 | T62: 0.0134 | U62: 1.0000 | V62: 4.7096 | W62: 1.62 | X62: 0.0030 | Y62: 1.0000 | Z62: No | AA62: 25916 | AB62: NAMPT | AC62: nicotinamide phosphoribosyltransferase | AD62: Yes | AE62: No | AF62: No | AG62: No | AH62: No | AI62: Yes | AJ62: No
A63: X | B63: 48801835 | C63: 48802035 | D63: 201 | E63: 860.82 | F63: 782.90 | G63: 873.43 | H63: 1341.46 | I63: 1029.75 | J63: 1809.19 | K63: 1598.43 | L63: 1046.72 | M63: 1673.25 | N63: =AVERAGE(E63:G63) -> 839.05 | O63: =AVERAGE(H63:J63) -> 1393.47 | P63: =AVERAGE(K63:M63) -> 1439.47 | Q63: 9.7126 | R63: 10.4445 | S63: 0.73 | T63: 0.0024 | U63: 0.0242 | V63: 10.4913 | W63: 0.78 | X63: 0.0030 | Y63: 0.0942 | Z63: Yes | AA63: -14 | AB63: HDAC6 | AC63: histone deacetylase 6 | AD63: Yes | AE63: No | AF63: No | AG63: Yes | AH63: No | AI63: No | AJ63: No
A64: 6 | B64: 26216532 | C64: 26216732 | D64: 201 | E64: 111.32 | F64: 96.55 | G64: 165.98 | H64: 227.37 | I64: 234.41 | J64: 321.05 | K64: 222.82 | L64: 201.35 | M64: 279.11 | N64: =AVERAGE(E64:G64) -> 124.62 | O64: =AVERAGE(H64:J64) -> 260.94 | P64: =AVERAGE(K64:M64) -> 234.43 | Q64: 6.9613 | R64: 8.0276 | S64: 1.07 | T64: 0.0002 | U64: 0.0240 | V64: 7.8730 | W64: 0.91 | X64: 0.0030 | Y64: 0.0942 | Z64: No | AA64: 56 | AB64: H2BC8 | AC64: H2B clustered histone 8 | AD64: Yes | AE64: No | AF64: No | AG64: Yes | AH64: No | AI64: No | AJ64: No
A65: 9 | B65: 93451581 | C65: 93451781 | D65: 201 | E65: 213.59 | F65: 154.86 | G65: 250.09 | H65: 394.10 | I65: 480.79 | J65: 237.95 | K65: 394.58 | L65: 305.87 | M65: 428.28 | N65: =AVERAGE(E65:G65) -> 206.18 | O65: =AVERAGE(H65:J65) -> 370.95 | P65: =AVERAGE(K65:M65) -> 376.24 | Q65: 7.6878 | R65: 8.5351 | S65: 0.85 | T65: 0.0037 | U65: 0.0256 | V65: 8.5555 | W65: 0.87 | X65: 0.0030 | Y65: 0.0942 | Z65: Yes | AA65: -4 | AB65: FAM120A | AC65: family with sequence similarity 120 member A | AD65: Yes | AE65: No | AF65: No | AG65: Yes | AH65: No | AI65: No | AJ65: No
A66: 14 | B66: 22815796 | C66: 22815996 | D66: 201 | E66: 63.43 | F66: 75.52 | G66: 102.14 | H66: 129.79 | I66: 139.93 | J66: 243.62 | K66: 184.14 | L66: 92.22 | M66: 230.79 | N66: =AVERAGE(E66:G66) -> 80.36 | O66: =AVERAGE(H66:J66) -> 171.11 | P66: =AVERAGE(K66:M66) -> 169.05 | Q66: 6.3284 | R66: 7.4188 | S66: 1.09 | T66: 0.0010 | U66: 0.0240 | V66: 7.4013 | W66: 1.07 | X66: 0.0031 | Y66: 1.0000 | Z66: No | AA66: -25 | AB66: SLC7A7 | AC66: solute carrier family 7 member 7 | AD66: Yes | AE66: No | AF66: Yes | AG66: Yes | AH66: No | AI66: No | AJ66: Yes
A67: X | B67: 149525545 | C67: 149525745 | D67: 201 | E67: 112.62 | F67: 99.42 | G67: 158.46 | H67: 231.16 | I67: 221.26 | J67: 339.93 | K67: 280.07 | L67: 159.85 | M67: 275.83 | N67: =AVERAGE(E67:G67) -> 123.50 | O67: =AVERAGE(H67:J67) -> 264.12 | P67: =AVERAGE(K67:M67) -> 238.58 | Q67: 6.9484 | R67: 8.0450 | S67: 1.10 | T67: 0.0001 | U67: 0.0240 | V67: 7.8984 | W67: 0.95 | X67: 0.0031 | Y67: 0.0942 | Z67: No | AA67: 14107 | AB67: EOLA1-DT | AC67: EOLA1 divergent transcript | AD67: No | AE67: No | AF67: No | AG67: No | AH67: No | AI67: Yes | AJ67: No
A68: 2 | B68: 61854447 | C68: 61854647 | D68: 201 | E68: 82.85 | F68: 86.99 | G68: 79.61 | H68: 162.95 | I68: 172.22 | J68: 173.74 | K68: 165.57 | L68: 122.96 | M68: 165.59 | N68: =AVERAGE(E68:G68) -> 83.15 | O68: =AVERAGE(H68:J68) -> 169.64 | P68: =AVERAGE(K68:M68) -> 151.37 | Q68: 6.3776 | R68: 7.4063 | S68: 1.03 | T68: 0.0001 | U68: 0.0240 | V68: 7.2420 | W68: 0.86 | X68: 0.0031 | Y68: 1.0000 | Z68: No | AA68: -487 | AB68: FAM161A | AC68: FAM161 centrosomal protein A | AD68: Yes | AE68: No | AF68: No | AG68: Yes | AH68: No | AI68: No | AJ68: No
A69: 12 | B69: 55817764 | C69: 55817964 | D69: 201 | E69: 1144.31 | F69: 893.79 | G69: 1324.80 | H69: 1793.35 | I69: 1535.66 | J69: 2742.12 | K69: 2040.98 | L69: 1387.95 | M69: 2485.72 | N69: =AVERAGE(E69:G69) -> 1120.97 | O69: =AVERAGE(H69:J69) -> 2023.71 | P69: =AVERAGE(K69:M69) -> 1971.55 | Q69: 10.1305 | R69: 10.9828 | S69: 0.85 | T69: 0.0011 | U69: 0.0240 | V69: 10.9451 | W69: 0.81 | X69: 0.0031 | Y69: 0.0942 | Z69: Yes | AA69: -108 | AB69: SARNP | AC69: SAP domain containing ribonucleoprotein | AD69: Yes | AE69: No | AF69: No | AG69: Yes | AH69: No | AI69: No | AJ69: No
A70: 4 | B70: 38663838 | C70: 38664038 | D70: 201 | E70: 728.79 | F70: 518.11 | G70: 757.03 | H70: 1253.36 | I70: 1075.20 | J70: 932.92 | K70: 1258.01 | L70: 954.50 | M70: 1259.98 | N70: =AVERAGE(E70:G70) -> 667.97 | O70: =AVERAGE(H70:J70) -> 1087.16 | P70: =AVERAGE(K70:M70) -> 1157.50 | Q70: 9.3836 | R70: 10.0863 | S70: 0.70 | T70: 0.0024 | U70: 0.0242 | V70: 10.1768 | W70: 0.79 | X70: 0.0031 | Y70: 0.0942 | Z70: Yes | AA70: -261 | AB70: KLF3 | AC70: KLF transcription factor 3 | AD70: Yes | AE70: No | AF70: No | AG70: Yes | AH70: No | AI70: No | AJ70: No
A71: 19 | B71: 11482662 | C71: 11482862 | D71: 201 | E71: 124.27 | F71: 101.33 | G71: 185.50 | H71: 273.79 | I71: 283.45 | J71: 224.73 | K71: 283.17 | L71: 199.82 | M71: 302.09 | N71: =AVERAGE(E71:G71) -> 137.03 | O71: =AVERAGE(H71:J71) -> 260.66 | P71: =AVERAGE(K71:M71) -> 261.69 | Q71: 7.0984 | R71: 8.0260 | S71: 0.93 | T71: 0.0010 | U71: 0.0240 | V71: 8.0317 | W71: 0.93 | X71: 0.0031 | Y71: 0.0942 | Z71: Yes | AA71: -1716 | AB71: ELAVL3 | AC71: ELAV like RNA binding protein 3 | AD71: Yes | AE71: No | AF71: No | AG71: No | AH71: Yes | AI71: No | AJ71: No
A72: 11 | B72: 67508239 | C72: 67508439 | D72: 201 | E72: 710.66 | F72: 518.11 | G72: 911.74 | H72: 1348.09 | I72: 1193.60 | J72: 1439.04 | K72: 1423.58 | L72: 957.58 | M72: 1549.88 | N72: =AVERAGE(E72:G72) -> 713.50 | O72: =AVERAGE(H72:J72) -> 1326.91 | P72: =AVERAGE(K72:M72) -> 1310.34 | Q72: 9.4788 | R72: 10.3739 | S72: 0.90 | T72: 0.0002 | U72: 0.0240 | V72: 10.3557 | W72: 0.88 | X72: 0.0031 | Y72: 0.0942 | Z72: Yes | AA72: -177 | AB72: CDK2AP2 | AC72: cyclin dependent kinase 2 associated protein 2 | AD72: Yes | AE72: No | AF72: No | AG72: Yes | AH72: No | AI72: No | AJ72: No
A73: 16 | B73: 71856409 | C73: 71856609 | D73: 201 | E73: 98.38 | F73: 91.77 | G73: 90.87 | H73: 119.37 | I73: 149.50 | J73: 192.63 | K73: 182.59 | L73: 135.26 | M73: 188.11 | N73: =AVERAGE(E73:G73) -> 93.67 | O73: =AVERAGE(H73:J73) -> 153.83 | P73: =AVERAGE(K73:M73) -> 168.65 | Q73: 6.5496 | R73: 7.2652 | S73: 0.72 | T73: 0.0137 | U73: 0.0412 | V73: 7.3979 | W73: 0.85 | X73: 0.0031 | Y73: 1.0000 | Z73: No | AA73: 10533 | AB73: ATXN1L | AC73: ataxin 1 like | AD73: Yes | AE73: No | AF73: No | AG73: No | AH73: No | AI73: Yes | AJ73: No
A74: X | B74: 150568388 | C74: 150568588 | D74: 201 | E74: 188.99 | F74: 188.32 | G74: 253.84 | H74: 353.36 | I74: 333.68 | J74: 319.16 | K74: 405.41 | L74: 275.13 | M74: 492.55 | N74: =AVERAGE(E74:G74) -> 210.38 | O74: =AVERAGE(H74:J74) -> 335.40 | P74: =AVERAGE(K74:M74) -> 391.03 | Q74: 7.7169 | R74: 8.3897 | S74: 0.67 | T74: 0.0049 | U74: 0.0273 | V74: 8.6111 | W74: 0.89 | X74: 0.0032 | Y74: 0.0942 | Z74: Yes | AA74: -133 | AB74: MTM1 | AC74: myotubularin 1 | AD74: Yes | AE74: No | AF74: No | AG74: Yes | AH74: No | AI74: No | AJ74: No
A75: 11 | B75: 75815005 | C75: 75815205 | D75: 201 | E75: 929.43 | F75: 730.33 | G75: 1116.01 | H75: 1661.67 | I75: 1399.31 | J75: 2028.26 | K75: 1805.78 | L75: 1195.82 | M75: 1859.48 | N75: =AVERAGE(E75:G75) -> 925.26 | O75: =AVERAGE(H75:J75) -> 1696.41 | P75: =AVERAGE(K75:M75) -> 1620.36 | Q75: 9.8537 | R75: 10.7283 | S75: 0.87 | T75: 0.0002 | U75: 0.0240 | V75: 10.6621 | W75: 0.81 | X75: 0.0032 | Y75: 0.0942 | Z75: Yes | AA75: -105 | AB75: UVRAG | AC75: UV radiation resistance associated | AD75: Yes | AE75: No | AF75: No | AG75: Yes | AH75: No | AI75: No | AJ75: No
A76: 3 | B76: 136862000 | C76: 136862200 | D76: 201 | E76: 930.72 | F76: 898.57 | G76: 1030.40 | H76: 1469.35 | I76: 1374.20 | J76: 1933.83 | K76: 1683.54 | L76: 1185.06 | M76: 2011.46 | N76: =AVERAGE(E76:G76) -> 953.23 | O76: =AVERAGE(H76:J76) -> 1592.46 | P76: =AVERAGE(K76:M76) -> 1626.69 | Q76: 9.8967 | R76: 10.6370 | S76: 0.74 | T76: 0.0007 | U76: 0.0240 | V76: 10.6677 | W76: 0.77 | X76: 0.0032 | Y76: 0.0942 | Z76: Yes | AA76: -37 | AB76: NCK1-DT | AC76: NCK1 divergent transcript | AD76: No | AE76: No | AF76: No | AG76: Yes | AH76: No | AI76: No | AJ76: No
A77: 20 | B77: 35954430 | C77: 35954630 | D77: 201 | E77: 687.36 | F77: 503.77 | G77: 807.34 | H77: 1202.20 | I77: 1108.69 | J77: 1259.64 | K77: 1323.00 | L77: 863.82 | M77: 1452.31 | N77: =AVERAGE(E77:G77) -> 666.16 | O77: =AVERAGE(H77:J77) -> 1190.17 | P77: =AVERAGE(K77:M77) -> 1213.04 | Q77: 9.3797 | R77: 10.2170 | S77: 0.84 | T77: 0.0003 | U77: 0.0240 | V77: 10.2444 | W77: 0.86 | X77: 0.0033 | Y77: 0.0942 | Z77: Yes | AA77: -28 | AB77: SCAND1 | AC77: SCAN domain containing 1 | AD77: Yes | AE77: No | AF77: No | AG77: Yes | AH77: No | AI77: No | AJ77: No
A78: 19 | B78: 12365620 | C78: 12365820 | D78: 201 | E78: 90.61 | F78: 92.72 | G78: 123.17 | H78: 175.26 | I78: 191.36 | J78: 241.73 | K78: 230.56 | L78: 122.96 | M78: 244.40 | N78: =AVERAGE(E78:G78) -> 102.17 | O78: =AVERAGE(H78:J78) -> 202.78 | P78: =AVERAGE(K78:M78) -> 199.31 | Q78: 6.6748 | R78: 7.6638 | S78: 0.99 | T78: 0.0004 | U78: 0.0240 | V78: 7.6388 | W78: 0.96 | X78: 0.0033 | Y78: 1.0000 | Z78: No | AA78: -37 | AB78: ZNF442 | AC78: zinc finger protein 442 | AD78: Yes | AE78: No | AF78: No | AG78: Yes | AH78: No | AI78: No | AJ78: No
A79: 1 | B79: 44721635 | C79: 44721835 | D79: 201 | E79: 321.03 | F79: 295.38 | G79: 343.97 | H79: 495.47 | I79: 607.56 | J79: 755.40 | K79: 581.81 | L79: 430.37 | M79: 671.27 | N79: =AVERAGE(E79:G79) -> 320.13 | O79: =AVERAGE(H79:J79) -> 619.48 | P79: =AVERAGE(K79:M79) -> 561.15 | Q79: 8.3225 | R79: 9.2749 | S79: 0.95 | T79: 0.0001 | U79: 0.0240 | V79: 9.1322 | W79: 0.81 | X79: 0.0033 | Y79: 0.0942 | Z79: Yes | AA79: 166 | AB79: RNU5F-1 | AC79: RNA, U5F small nuclear 1 | AD79: No | AE79: No | AF79: No | AG79: Yes | AH79: No | AI79: No | AJ79: No
A80: 17 | B80: 8435789 | C80: 8435989 | D80: 201 | E80: 607.11 | F80: 454.06 | G80: 711.97 | H80: 1192.72 | I80: 1016.59 | J80: 993.36 | K80: 1245.63 | L80: 771.59 | M80: 1202.75 | N80: =AVERAGE(E80:G80) -> 591.05 | O80: =AVERAGE(H80:J80) -> 1067.56 | P80: =AVERAGE(K80:M80) -> 1073.33 | Q80: 9.2071 | R80: 10.0601 | S80: 0.85 | T80: 0.0002 | U80: 0.0240 | V80: 10.0679 | W80: 0.86 | X80: 0.0033 | Y80: 0.0942 | Z80: Yes | AA80: 5 | AB80: NDEL1 | AC80: nudE neurodevelopment protein 1 like 1 | AD80: Yes | AE80: No | AF80: Yes | AG80: Yes | AH80: No | AI80: No | AJ80: No
A81: 4 | B81: 9152642 | C81: 9152842 | D81: 201 | E81: 569.57 | F81: 539.14 | G81: 619.59 | H81: 969.15 | I81: 783.38 | J81: 883.82 | K81: 1067.68 | L81: 779.28 | M81: 1078.44 | N81: =AVERAGE(E81:G81) -> 576.10 | O81: =AVERAGE(H81:J81) -> 878.78 | P81: =AVERAGE(K81:M81) -> 975.13 | Q81: 9.1702 | R81: 9.7794 | S81: 0.61 | T81: 0.0032 | U81: 0.0249 | V81: 9.9295 | W81: 0.76 | X81: 0.0033 | Y81: 0.0942 | Z81: Yes | AA81: -20431 | AB81: FAM90A26 | AC81: family with sequence similarity 90 member A26 | AD81: Yes | AE81: No | AF81: No | AG81: No | AH81: No | AI81: Yes | AJ81: No
A82: 1 | B82: 3900700 | C82: 3900900 | D82: 201 | E82: 1148.19 | F82: 585.98 | G82: 1110.00 | H82: 1798.09 | I82: 1557.18 | J82: 2192.56 | K82: 1838.27 | L82: 1360.28 | M82: 2027.88 | N82: =AVERAGE(E82:G82) -> 948.06 | O82: =AVERAGE(H82:J82) -> 1849.28 | P82: =AVERAGE(K82:M82) -> 1742.15 | Q82: 9.8888 | R82: 10.8527 | S82: 0.96 | T82: 0.0004 | U82: 0.0240 | V82: 10.7666 | W82: 0.88 | X82: 0.0033 | Y82: 0.0942 | Z82: Yes | AA82: 396 | AB82: LINC01134 | AC82: long intergenic non-protein coding RNA 1134 | AD82: No | AE82: No | AF82: Yes | AG82: Yes | AH82: No | AI82: No | AJ82: No
A83: 20 | B83: 63739539 | C83: 63739739 | D83: 201 | E83: 194.17 | F83: 144.34 | G83: 198.27 | H83: 341.05 | I83: 387.50 | J83: 166.19 | K83: 315.66 | L83: 282.82 | M83: 333.52 | N83: =AVERAGE(E83:G83) -> 178.93 | O83: =AVERAGE(H83:J83) -> 298.25 | P83: =AVERAGE(K83:M83) -> 310.67 | Q83: 7.4832 | R83: 8.2204 | S83: 0.74 | T83: 0.0150 | U83: 0.0430 | V83: 8.2792 | W83: 0.80 | X83: 0.0033 | Y83: 0.0942 | Z83: Yes | AA83: -137 | AB83: SLC2A4RG | AC83: SLC2A4 regulator | AD83: Yes | AE83: No | AF83: Yes | AG83: Yes | AH83: No | AI83: No | AJ83: No
A84: 18 | B84: 51197812 | C84: 51198012 | D84: 201 | E84: 1043.34 | F84: 841.21 | G84: 1049.17 | H84: 1580.19 | I84: 1497.38 | J84: 1780.86 | K84: 1881.60 | L84: 1371.04 | M84: 1572.39 | N84: =AVERAGE(E84:G84) -> 977.91 | O84: =AVERAGE(H84:J84) -> 1619.48 | P84: =AVERAGE(K84:M84) -> 1608.34 | Q84: 9.9336 | R84: 10.6613 | S84: 0.73 | T84: 0.0005 | U84: 0.0240 | V84: 10.6514 | W84: 0.72 | X84: 0.0033 | Y84: 0.0942 | Z84: Yes | AA84: -231 | AB84: MEX3C | AC84: mex-3 RNA binding family member C | AD84: Yes | AE84: No | AF84: No | AG84: Yes | AH84: No | AI84: No | AJ84: Yes
A85: 8 | B85: 27395144 | C85: 27395344 | D85: 201 | E85: 47.90 | F85: 43.97 | G85: 56.33 | H85: 74.84 | I85: 107.64 | J85: 111.42 | K85: 103.67 | L85: 59.94 | M85: 152.92 | N85: =AVERAGE(E85:G85) -> 49.40 | O85: =AVERAGE(H85:J85) -> 97.97 | P85: =AVERAGE(K85:M85) -> 105.51 | Q85: 5.6264 | R85: 6.6142 | S85: 0.99 | T85: 0.0030 | U85: 0.0247 | V85: 6.7213 | W85: 1.09 | X85: 0.0033 | Y85: 1.0000 | Z85: No | AA85: -38126 | AB85: MIR6842 | AC85: microRNA 6842 | AD85: No | AE85: No | AF85: No | AG85: No | AH85: No | AI85: Yes | AJ85: No
A86: 14 | B86: 95534778 | C86: 95534978 | D86: 201 | E86: 1271.17 | F86: 1068.72 | G86: 1454.72 | H86: 1947.77 | I86: 1633.73 | J86: 2834.65 | K86: 2367.47 | L86: 1483.24 | M86: 2705.25 | N86: =AVERAGE(E86:G86) -> 1264.87 | O86: =AVERAGE(H86:J86) -> 2138.72 | P86: =AVERAGE(K86:M86) -> 2185.32 | Q86: 10.3048 | R86: 11.0625 | S86: 0.76 | T86: 0.0025 | U86: 0.0243 | V86: 11.0936 | W86: 0.79 | X86: 0.0034 | Y86: 0.0942 | Z86: Yes | AA86: -6 | AB86: SNHG10 | AC86: small nucleolar RNA host gene 10 | AD86: No | AE86: No | AF86: No | AG86: Yes | AH86: No | AI86: No | AJ86: No
A87: 5 | B87: 170404550 | C87: 170404750 | D87: 201 | E87: 103.56 | F87: 135.74 | G87: 144.95 | H87: 153.47 | I87: 141.13 | J87: 389.03 | K87: 278.53 | L87: 158.31 | M87: 289.90 | N87: =AVERAGE(E87:G87) -> 128.08 | O87: =AVERAGE(H87:J87) -> 227.88 | P87: =AVERAGE(K87:M87) -> 242.25 | Q87: 7.0009 | R87: 7.8321 | S87: 0.83 | T87: 0.0222 | U87: 0.0528 | V87: 7.9203 | W87: 0.92 | X87: 0.0034 | Y87: 0.0942 | Z87: No | AA87: 15157 | AB87: KCNIP1-OT1 | AC87: KCNIP1 overlapping transcript 1 | AD87: No | AE87: No | AF87: Yes | AG87: No | AH87: No | AI87: Yes | AJ87: No
A88: 17 | B88: 47733136 | C88: 47733336 | D88: 201 | E88: 81.55 | F88: 52.58 | G88: 84.11 | H88: 117.47 | I88: 182.99 | J88: 81.21 | K88: 137.72 | L88: 121.43 | M88: 153.39 | N88: =AVERAGE(E88:G88) -> 72.75 | O88: =AVERAGE(H88:J88) -> 127.22 | P88: =AVERAGE(K88:M88) -> 137.51 | Q88: 6.1848 | R88: 6.9912 | S88: 0.81 | T88: 0.0189 | U88: 0.0485 | V88: 7.1034 | W88: 0.92 | X88: 0.0034 | Y88: 1.0000 | Z88: No | AA88: 0 | AB88: TBX21 | AC88: T-box transcription factor 21 | AD88: Yes | AE88: No | AF88: No | AG88: Yes | AH88: No | AI88: No | AJ88: No
A89: 9 | B89: 133855831 | C89: 133856031 | D89: 201 | E89: 94.50 | F89: 82.21 | G89: 114.15 | H89: 132.63 | I89: 181.79 | J89: 222.84 | K89: 241.39 | L89: 138.33 | M89: 171.69 | N89: =AVERAGE(E89:G89) -> 96.95 | O89: =AVERAGE(H89:J89) -> 179.09 | P89: =AVERAGE(K89:M89) -> 183.80 | Q89: 6.5992 | R89: 7.4845 | S89: 0.89 | T89: 0.0029 | U89: 0.0246 | V89: 7.5220 | W89: 0.92 | X89: 0.0034 | Y89: 1.0000 | Z89: No | AA89: -115976 | AB89: SARDH | AC89: sarcosine dehydrogenase | AD89: Yes | AE89: No | AF89: No | AG89: No | AH89: No | AI89: Yes | AJ89: No
A90: X | B90: 129982482 | C90: 129982682 | D90: 201 | E90: 243.36 | F90: 209.35 | G90: 304.16 | H90: 446.21 | I90: 434.15 | J90: 506.12 | K90: 423.98 | L90: 370.43 | M90: 570.88 | N90: =AVERAGE(E90:G90) -> 252.29 | O90: =AVERAGE(H90:J90) -> 462.16 | P90: =AVERAGE(K90:M90) -> 455.10 | Q90: 7.9789 | R90: 8.8522 | S90: 0.87 | T90: 0.0002 | U90: 0.0240 | V90: 8.8300 | W90: 0.85 | X90: 0.0034 | Y90: 0.0942 | Z90: Yes | AA90: -53 | AB90: BCORL1 | AC90: BCL6 corepressor like 1 | AD90: Yes | AE90: No | AF90: No | AG90: Yes | AH90: No | AI90: No | AJ90: No
A91: 17 | B91: 7572491 | C91: 7572691 | D91: 201 | E91: 1197.38 | F91: 614.66 | G91: 1405.91 | H91: 1867.24 | I91: 1603.83 | J91: 2736.45 | K91: 2192.62 | L91: 1352.59 | M91: 2745.12 | N91: =AVERAGE(E91:G91) -> 1072.65 | O91: =AVERAGE(H91:J91) -> 2069.17 | P91: =AVERAGE(K91:M91) -> 2096.78 | Q91: 10.0670 | R91: 11.0148 | S91: 0.95 | T91: 0.0017 | U91: 0.0240 | V91: 11.0340 | W91: 0.97 | X91: 0.0035 | Y91: 0.0942 | Z91: Yes | AA91: -234 | AB91: EIF4A1 | AC91: eukaryotic translation initiation factor 4A1 | AD91: Yes | AE91: No | AF91: No | AG91: Yes | AH91: No | AI91: No | AJ91: No
A92: 1 | B92: 110963955 | C92: 110964155 | D92: 201 | E92: 799.98 | F92: 611.79 | G92: 873.43 | H92: 1345.25 | I92: 1118.25 | J92: 1714.77 | K92: 1381.80 | L92: 928.37 | M92: 1883.40 | N92: =AVERAGE(E92:G92) -> 761.74 | O92: =AVERAGE(H92:J92) -> 1392.76 | P92: =AVERAGE(K92:M92) -> 1397.86 | Q92: 9.5731 | R92: 10.4437 | S92: 0.87 | T92: 0.0003 | U92: 0.0240 | V92: 10.4490 | W92: 0.88 | X92: 0.0035 | Y92: 0.0942 | Z92: Yes | AA92: -111 | AB92: LRIF1 | AC92: ligand dependent nuclear receptor interacting factor 1 | AD92: Yes | AE92: No | AF92: No | AG92: Yes | AH92: No | AI92: No | AJ92: No
A93: 21 | B93: 33542832 | C93: 33543032 | D93: 201 | E93: 954.02 | F93: 735.11 | G93: 1051.43 | H93: 1469.35 | I93: 1356.26 | J93: 1941.39 | K93: 1781.02 | L93: 1134.33 | M93: 1875.43 | N93: =AVERAGE(E93:G93) -> 913.52 | O93: =AVERAGE(H93:J93) -> 1589.00 | P93: =AVERAGE(K93:M93) -> 1596.93 | Q93: 9.8353 | R93: 10.6339 | S93: 0.80 | T93: 0.0006 | U93: 0.0240 | V93: 10.6411 | W93: 0.81 | X93: 0.0035 | Y93: 0.0942 | Z93: Yes | AA93: -40 | AB93: GART | AC93: phosphoribosylglycinamide formyltransferase, phosphoribosylglycinamide synthetase, phosphoribosylaminoimidazole synthetase | AD93: Yes | AE93: No | AF93: No | AG93: Yes | AH93: No | AI93: No | AJ93: No
A94: 3 | B94: 50235913 | C94: 50236113 | D94: 201 | E94: 1509.35 | F94: 1345.94 | G94: 1631.96 | H94: 2337.13 | I94: 1638.51 | J94: 3246.35 | K94: 2590.30 | L94: 1710.72 | M94: 3335.71 | N94: =AVERAGE(E94:G94) -> 1495.75 | O94: =AVERAGE(H94:J94) -> 2407.33 | P94: =AVERAGE(K94:M94) -> 2545.58 | Q94: 10.5467 | R94: 11.2332 | S94: 0.69 | T94: 0.0082 | U94: 0.0328 | V94: 11.3138 | W94: 0.77 | X94: 0.0035 | Y94: 0.0942 | Z94: Yes | AA94: -191 | AB94: GNAI2 | AC94: G protein subunit alpha i2 | AD94: Yes | AE94: No | AF94: No | AG94: Yes | AH94: No | AI94: No | AJ94: Yes
A95: 9 | B95: 32552221 | C95: 32552421 | D95: 201 | E95: 157.93 | F95: 140.52 | G95: 243.33 | H95: 318.31 | I95: 392.29 | J95: 347.49 | K95: 397.67 | L95: 256.69 | M95: 364.01 | N95: =AVERAGE(E95:G95) -> 180.59 | O95: =AVERAGE(H95:J95) -> 352.69 | P95: =AVERAGE(K95:M95) -> 339.46 | Q95: 7.4966 | R95: 8.4623 | S95: 0.97 | T95: 0.0003 | U95: 0.0240 | V95: 8.4071 | W95: 0.91 | X95: 0.0035 | Y95: 0.0942 | Z95: Yes | AA95: 87 | AB95: SMIM27 | AC95: small integral membrane protein 27 | AD95: Yes | AE95: No | AF95: No | AG95: Yes | AH95: No | AI95: No | AJ95: No
A96: 1 | B96: 15065880 | C96: 15066080 | D96: 201 | E96: 126.86 | F96: 106.11 | G96: 122.42 | H96: 264.31 | I96: 163.85 | J96: 188.85 | K96: 219.73 | L96: 167.54 | M96: 241.11 | N96: =AVERAGE(E96:G96) -> 118.46 | O96: =AVERAGE(H96:J96) -> 205.67 | P96: =AVERAGE(K96:M96) -> 209.46 | Q96: 6.8883 | R96: 7.6842 | S96: 0.80 | T96: 0.0036 | U96: 0.0255 | V96: 7.7105 | W96: 0.82 | X96: 0.0035 | Y96: 0.0942 | Z96: No | AA96: 86484 | AB96: TMEM51-AS1 | AC96: TMEM51 antisense RNA 1 | AD96: No | AE96: No | AF96: No | AG96: No | AH96: No | AI96: Yes | AJ96: No
A97: 12 | B97: 101830843 | C97: 101831043 | D97: 201 | E97: 103.56 | F97: 86.03 | G97: 123.17 | H97: 207.47 | I97: 200.93 | J97: 75.54 | K97: 191.87 | L97: 167.54 | M97: 199.83 | N97: =AVERAGE(E97:G97) -> 104.25 | O97: =AVERAGE(H97:J97) -> 161.31 | P97: =AVERAGE(K97:M97) -> 186.41 | Q97: 6.7039 | R97: 7.3337 | S97: 0.63 | T97: 0.0668 | U97: 0.1044 | V97: 7.5424 | W97: 0.84 | X97: 0.0035 | Y97: 1.0000 | Z97: No | AA97: 16 | AB97: GNPTAB | AC97: N-acetylglucosamine-1-phosphate transferase subunits alpha and beta | AD97: Yes | AE97: No | AF97: No | AG97: Yes | AH97: No | AI97: No | AJ97: No
A98: 1 | B98: 110339224 | C98: 110339424 | D98: 201 | E98: 1342.36 | F98: 976.96 | G98: 1487.77 | H98: 2080.40 | I98: 1673.20 | J98: 2653.36 | K98: 2370.57 | L98: 1521.67 | M98: 2759.20 | N98: =AVERAGE(E98:G98) -> 1269.03 | O98: =AVERAGE(H98:J98) -> 2135.65 | P98: =AVERAGE(K98:M98) -> 2217.14 | Q98: 10.3095 | R98: 11.0605 | S98: 0.75 | T98: 0.0025 | U98: 0.0243 | V98: 11.1145 | W98: 0.80 | X98: 0.0036 | Y98: 0.0942 | Z98: Yes | AA98: -53 | AB98: RBM15 | AC98: RNA binding motif protein 15 | AD98: Yes | AE98: No | AF98: No | AG98: Yes | AH98: No | AI98: No | AJ98: No
A99: 15 | B99: 77083802 | C99: 77084002 | D99: 201 | E99: 73.78 | F99: 65.00 | G99: 84.87 | H99: 110.84 | I99: 133.95 | J99: 213.40 | K99: 133.07 | L99: 99.91 | M99: 208.75 | N99: =AVERAGE(E99:G99) -> 74.55 | O99: =AVERAGE(H99:J99) -> 152.73 | P99: =AVERAGE(K99:M99) -> 147.24 | Q99: 6.2202 | R99: 7.2549 | S99: 1.03 | T99: 0.0014 | U99: 0.0240 | V99: 7.2020 | W99: 0.98 | X99: 0.0036 | Y99: 1.0000 | Z99: No | AA99: -12793 | AB99: TSPAN3 | AC99: tetraspanin 3 | AD99: Yes | AE99: No | AF99: No | AG99: No | AH99: No | AI99: Yes | AJ99: No
A100: 2 | B100: 46941123 | C100: 46941323 | D100: 201 | E100: 255.01 | F100: 184.49 | G100: 258.35 | H100: 454.73 | I100: 497.53 | J100: 188.85 | K100: 459.57 | L100: 341.22 | M100: 426.40 | N100: =AVERAGE(E100:G100) -> 232.62 | O100: =AVERAGE(H100:J100) -> 380.37 | P100: =AVERAGE(K100:M100) -> 409.07 | Q100: 7.8618 | R100: 8.5713 | S100: 0.71 | T100: 0.0256 | U100: 0.0572 | V100: 8.6762 | W100: 0.81 | X100: 0.0036 | Y100: 0.0942 | Z100: Yes | AA100: -1 | AB100: TTC7A | AC100: tetratricopeptide repeat domain 7A | AD100: Yes | AE100: Yes | AF100: Yes | AG100: Yes | AH100: No | AI100: No | AJ100: Yes
A101: 17 | B101: 58338041 | C101: 58338241 | D101: 201 | E101: 561.80 | F101: 479.87 | G101: 658.64 | H101: 937.88 | I101: 913.74 | J101: 1269.08 | K101: 1036.74 | L101: 748.54 | M101: 1201.81 | N101: =AVERAGE(E101:G101) -> 566.77 | O101: =AVERAGE(H101:J101) -> 1040.23 | P101: =AVERAGE(K101:M101) -> 995.70 | Q101: 9.1466 | R101: 10.0227 | S101: 0.88 | T101: 0.0002 | U101: 0.0240 | V101: 9.9596 | W101: 0.81 | X101: 0.0036 | Y101: 0.0942 | Z101: Yes | AA101: 939 | AB101: TSPOAP1-AS1 | AC101: TSPOAP1, SUPT4H1 and RNF43 antisense RNA 1 | AD101: No | AE101: No | AF101: No | AG101: No | AH101: Yes | AI101: No | AJ101: No
A102: 20 | B102: 33369470 | C102: 33369670 | D102: 201 | E102: 245.95 | F102: 179.71 | G102: 302.66 | H102: 363.79 | I102: 349.23 | J102: 621.32 | K102: 447.19 | L102: 321.24 | M102: 633.74 | N102: =AVERAGE(E102:G102) -> 242.77 | O102: =AVERAGE(H102:J102) -> 444.78 | P102: =AVERAGE(K102:M102) -> 467.39 | Q102: 7.9235 | R102: 8.7969 | S102: 0.87 | T102: 0.0027 | U102: 0.0246 | V102: 8.8685 | W102: 0.95 | X102: 0.0036 | Y102: 0.0942 | Z102: Yes | AA102: 31949 | AB102: CDK5RAP1 | AC102: CDK5 regulatory subunit associated protein 1 | AD102: Yes | AE102: No | AF102: No | AG102: No | AH102: No | AI102: Yes | AJ102: No
A103: 3 | B103: 49470075 | C103: 49470275 | D103: 201 | E103: 656.30 | F103: 442.59 | G103: 739.75 | H103: 1290.30 | I103: 1107.49 | J103: 774.29 | K103: 1245.63 | L103: 885.33 | M103: 1135.20 | N103: =AVERAGE(E103:G103) -> 612.88 | O103: =AVERAGE(H103:J103) -> 1057.36 | P103: =AVERAGE(K103:M103) -> 1088.72 | Q103: 9.2595 | R103: 10.0463 | S103: 0.79 | T103: 0.0027 | U103: 0.0246 | V103: 10.0884 | W103: 0.83 | X103: 0.0036 | Y103: 0.0942 | Z103: Yes | AA103: 43 | AB103: DAG1 | AC103: dystroglycan 1 | AD103: Yes | AE103: No | AF103: Yes | AG103: Yes | AH103: No | AI103: No | AJ103: No
A104: 3 | B104: 33440522 | C104: 33440722 | D104: 201 | E104: 1467.93 | F104: 1353.59 | G104: 1425.43 | H104: 2098.40 | I104: 1718.64 | J104: 2538.16 | K104: 2579.46 | L104: 1753.76 | M104: 2437.87 | N104: =AVERAGE(E104:G104) -> 1415.65 | O104: =AVERAGE(H104:J104) -> 2118.40 | P104: =AVERAGE(K104:M104) -> 2257.03 | Q104: 10.4672 | R104: 11.0488 | S104: 0.58 | T104: 0.0077 | U104: 0.0319 | V104: 11.1402 | W104: 0.67 | X104: 0.0036 | Y104: 0.0942 | Z104: Yes | AA104: -217 | AB104: UBP1 | AC104: upstream binding protein 1 | AD104: Yes | AE104: No | AF104: Yes | AG104: Yes | AH104: No | AI104: No | AJ104: No
A105: 13 | B105: 99289757 | C105: 99289957 | D105: 201 | E105: 69.90 | F105: 55.44 | G105: 60.08 | H105: 90.00 | I105: 102.86 | J105: 169.97 | K105: 122.24 | L105: 79.93 | M105: 164.65 | N105: =AVERAGE(E105:G105) -> 61.81 | O105: =AVERAGE(H105:J105) -> 120.94 | P105: =AVERAGE(K105:M105) -> 122.27 | Q105: 5.9497 | R105: 6.9181 | S105: 0.97 | T105: 0.0038 | U105: 0.0258 | V105: 6.9340 | W105: 0.98 | X105: 0.0036 | Y105: 1.0000 | Z105: No | AA105: 17542 | AB105: GPR183 | AC105: G protein-coupled receptor 183 | AD105: Yes | AE105: No | AF105: Yes | AG105: No | AH105: No | AI105: Yes | AJ105: No
A106: 16 | B106: 1782713 | C106: 1782913 | D106: 201 | E106: 1039.46 | F106: 1014.24 | G106: 1156.57 | H106: 1621.88 | I106: 1368.22 | J106: 2179.34 | K106: 1912.55 | L106: 1306.48 | M106: 2153.60 | N106: =AVERAGE(E106:G106) -> 1070.09 | O106: =AVERAGE(H106:J106) -> 1723.14 | P106: =AVERAGE(K106:M106) -> 1790.88 | Q106: 10.0635 | R106: 10.7508 | S106: 0.69 | T106: 0.0028 | U106: 0.0246 | V106: 10.8065 | W106: 0.74 | X106: 0.0036 | Y106: 0.0942 | Z106: Yes | AA106: -147 | AB106: NUBP2 | AC106: NUBP iron-sulfur cluster assembly factor 2, cytosolic | AD106: Yes | AE106: No | AF106: Yes | AG106: Yes | AH106: No | AI106: No | AJ106: No
A107: 3 | B107: 43690835 | C107: 43691035 | D107: 201 | E107: 371.51 | F107: 319.28 | G107: 485.91 | H107: 712.41 | I107: 760.65 | J107: 570.33 | K107: 731.91 | L107: 568.70 | M107: 770.72 | N107: =AVERAGE(E107:G107) -> 392.23 | O107: =AVERAGE(H107:J107) -> 681.13 | P107: =AVERAGE(K107:M107) -> 690.44 | Q107: 8.6156 | R107: 9.4118 | S107: 0.80 | T107: 0.0009 | U107: 0.0240 | V107: 9.4314 | W107: 0.82 | X107: 0.0037 | Y107: 0.0942 | Z107: Yes | AA107: -3 | AB107: ABHD5 | AC107: abhydrolase domain containing 5, lysophosphatidic acid acyltransferase | AD107: Yes | AE107: Yes | AF107: Yes | AG107: Yes | AH107: No | AI107: No | AJ107: Yes
A108: 11 | B108: 14633560 | C108: 14633760 | D108: 201 | E108: 44.01 | F108: 33.46 | G108: 36.80 | H108: 71.05 | I108: 88.50 | J108: 86.87 | K108: 74.27 | L108: 55.33 | M108: 107.42 | N108: =AVERAGE(E108:G108) -> 38.09 | O108: =AVERAGE(H108:J108) -> 82.14 | P108: =AVERAGE(K108:M108) -> 79.01 | Q108: 5.2513 | R108: 6.3601 | S108: 1.11 | T108: 0.0011 | U108: 0.0240 | V108: 6.3040 | W108: 1.05 | X108: 0.0037 | Y108: 1.0000 | Z108: No | AA108: 9974 | AB108: PSMA1 | AC108: proteasome 20S subunit alpha 1 | AD108: Yes | AE108: No | AF108: No | AG108: No | AH108: Yes | AI108: No | AJ108: No
A109: 5 | B109: 119299613 | C109: 119299813 | D109: 201 | E109: 155.34 | F109: 130.96 | G109: 168.98 | H109: 207.47 | I109: 301.39 | J109: 349.37 | K109: 266.15 | L109: 219.80 | M109: 309.13 | N109: =AVERAGE(E109:G109) -> 151.76 | O109: =AVERAGE(H109:J109) -> 286.08 | P109: =AVERAGE(K109:M109) -> 265.03 | Q109: 7.2456 | R109: 8.1603 | S109: 0.91 | T109: 0.0007 | U109: 0.0240 | V109: 8.0500 | W109: 0.80 | X109: 0.0037 | Y109: 0.0942 | Z109: Yes | AA109: 30954 | AB109: TNFAIP8 | AC109: TNF alpha induced protein 8 | AD109: Yes | AE109: No | AF109: No | AG109: No | AH109: No | AI109: Yes | AJ109: No
A110: 7 | B110: 7182393 | C110: 7182593 | D110: 201 | E110: 812.93 | F110: 800.11 | G110: 1007.12 | H110: 1363.25 | I110: 1340.71 | J110: 1456.04 | K110: 1596.88 | L110: 1131.26 | M110: 1682.16 | N110: =AVERAGE(E110:G110) -> 873.38 | O110: =AVERAGE(H110:J110) -> 1386.67 | P110: =AVERAGE(K110:M110) -> 1470.10 | Q110: 9.7705 | R110: 10.4374 | S110: 0.67 | T110: 0.0011 | U110: 0.0240 | V110: 10.5217 | W110: 0.75 | X110: 0.0037 | Y110: 0.0942 | Z110: Yes | AA110: -51 | AB110: C1GALT1 | AC110: core 1 synthase, glycoprotein-N-acetylgalactosamine 3-beta-galactosyltransferase 1 | AD110: Yes | AE110: No | AF110: No | AG110: Yes | AH110: No | AI110: No | AJ110: No
A111: 1 | B111: 36306923 | C111: 36307123 | D111: 201 | E111: 314.56 | F111: 231.33 | G111: 417.57 | H111: 557.99 | I111: 550.16 | J111: 611.88 | K111: 679.29 | L111: 410.39 | M111: 758.99 | N111: =AVERAGE(E111:G111) -> 321.15 | O111: =AVERAGE(H111:J111) -> 573.34 | P111: =AVERAGE(K111:M111) -> 616.22 | Q111: 8.3271 | R111: 9.1633 | S111: 0.84 | T111: 0.0010 | U111: 0.0240 | V111: 9.2673 | W111: 0.94 | X111: 0.0037 | Y111: 0.0942 | Z111: Yes | AA111: -84 | AB111: SH3D21 | AC111: SH3 domain containing 21 | AD111: Yes | AE111: No | AF111: No | AG111: Yes | AH111: No | AI111: No | AJ111: No
A112: 4 | B112: 128809646 | C112: 128809846 | D112: 201 | E112: 168.28 | F112: 157.73 | G112: 202.02 | H112: 312.63 | I112: 356.41 | J112: 283.28 | K112: 338.87 | L112: 264.37 | M112: 306.32 | N112: =AVERAGE(E112:G112) -> 176.01 | O112: =AVERAGE(H112:J112) -> 317.44 | P112: =AVERAGE(K112:M112) -> 303.19 | Q112: 7.4595 | R112: 8.3103 | S112: 0.85 | T112: 0.0004 | U112: 0.0240 | V112: 8.2441 | W112: 0.78 | X112: 0.0037 | Y112: 0.0942 | Z112: Yes | AA112: 46 | AB112: JADE1 | AC112: jade family PHD finger 1 | AD112: Yes | AE112: No | AF112: No | AG112: Yes | AH112: No | AI112: No | AJ112: No
A113: 3 | B113: 129440080 | C113: 129440280 | D113: 201 | E113: 913.90 | F113: 738.93 | G113: 1050.67 | H113: 1529.04 | I113: 1392.14 | J113: 1720.43 | K113: 1731.51 | L113: 1178.91 | M113: 1682.16 | N113: =AVERAGE(E113:G113) -> 901.17 | O113: =AVERAGE(H113:J113) -> 1547.20 | P113: =AVERAGE(K113:M113) -> 1530.86 | Q113: 9.8157 | R113: 10.5954 | S113: 0.78 | T113: 0.0004 | U113: 0.0240 | V113: 10.5801 | W113: 0.76 | X113: 0.0038 | Y113: 0.0942 | Z113: Yes | AA113: -1 | AB113: MBD4 | AC113: methyl-CpG binding domain 4, DNA glycosylase | AD113: Yes | AE113: No | AF113: Yes | AG113: Yes | AH113: No | AI113: No | AJ113: No
A114: 19 | B114: 3516917 | C114: 3517117 | D114: 201 | E114: 47.90 | F114: 31.55 | G114: 57.08 | H114: 102.31 | I114: 83.72 | J114: 126.53 | K114: 85.11 | L114: 76.85 | M114: 117.27 | N114: =AVERAGE(E114:G114) -> 45.51 | O114: =AVERAGE(H114:J114) -> 104.19 | P114: =AVERAGE(K114:M114) -> 93.08 | Q114: 5.5080 | R114: 6.7030 | S114: 1.20 | T114: 0.0006 | U114: 0.0240 | V114: 6.5403 | W114: 1.03 | X114: 0.0038 | Y114: 1.0000 | Z114: No | AA114: -5939 | AB114: FZR1 | AC114: fizzy and cell division cycle 20 related 1 | AD114: Yes | AE114: No | AF114: No | AG114: No | AH114: Yes | AI114: No | AJ114: No
A115: 6 | B115: 157021425 | C115: 157021625 | D115: 201 | E115: 450.48 | F115: 402.44 | G115: 440.85 | H115: 680.20 | I115: 779.79 | J115: 540.11 | K115: 864.98 | L115: 648.63 | M115: 665.64 | N115: =AVERAGE(E115:G115) -> 431.26 | O115: =AVERAGE(H115:J115) -> 666.70 | P115: =AVERAGE(K115:M115) -> 726.42 | Q115: 8.7524 | R115: 9.3809 | S115: 0.63 | T115: 0.0047 | U115: 0.0270 | V115: 9.5047 | W115: 0.75 | X115: 0.0038 | Y115: 0.0942 | Z115: Yes | AA115: -14902 | AB115: ARID1B | AC115: AT-rich interaction domain 1B | AD115: Yes | AE115: No | AF115: No | AG115: No | AH115: No | AI115: Yes | AJ115: No
A116: 3 | B116: 120094921 | C116: 120095121 | D116: 201 | E116: 1171.49 | F116: 1129.90 | G116: 1156.57 | H116: 1708.09 | I116: 1624.16 | J116: 2162.34 | K116: 2126.08 | L116: 1483.24 | M116: 1927.50 | N116: =AVERAGE(E116:G116) -> 1152.66 | O116: =AVERAGE(H116:J116) -> 1831.53 | P116: =AVERAGE(K116:M116) -> 1845.61 | Q116: 10.1707 | R116: 10.8388 | S116: 0.67 | T116: 0.0013 | U116: 0.0240 | V116: 10.8499 | W116: 0.68 | X116: 0.0038 | Y116: 0.0942 | Z116: Yes | AA116: -574 | AB116: GSK3B | AC116: glycogen synthase kinase 3 beta | AD116: Yes | AE116: No | AF116: No | AG116: No | AH116: Yes | AI116: No | AJ116: No
A117: 15 | B117: 75350048 | C117: 75350248 | D117: 201 | E117: 280.90 | F117: 203.61 | G117: 235.07 | H117: 395.05 | I117: 364.78 | J117: 564.66 | K117: 470.40 | L117: 310.48 | M117: 514.59 | N117: =AVERAGE(E117:G117) -> 239.86 | O117: =AVERAGE(H117:J117) -> 441.50 | P117: =AVERAGE(K117:M117) -> 431.83 | Q117: 7.9060 | R117: 8.7863 | S117: 0.88 | T117: 0.0006 | U117: 0.0240 | V117: 8.7543 | W117: 0.85 | X117: 0.0038 | Y117: 0.0942 | Z117: Yes | AA117: 2313 | AB117: NEIL1 | AC117: nei like DNA glycosylase 1 | AD117: Yes | AE117: No | AF117: No | AG117: No | AH117: Yes | AI117: No | AJ117: No
A118: X | B118: 30889300 | C118: 30889500 | D118: 201 | E118: 357.27 | F118: 369.94 | G118: 464.13 | H118: 651.78 | I118: 631.48 | J118: 732.74 | K118: 787.61 | L118: 547.19 | M118: 728.50 | N118: =AVERAGE(E118:G118) -> 397.12 | O118: =AVERAGE(H118:J118) -> 672.00 | P118: =AVERAGE(K118:M118) -> 687.77 | Q118: 8.6334 | R118: 9.3923 | S118: 0.76 | T118: 0.0005 | U118: 0.0240 | V118: 9.4258 | W118: 0.79 | X118: 0.0038 | Y118: 0.0942 | Z118: Yes | AA118: -146 | AB118: TAB3 | AC118: TGF-beta activated kinase 1 (MAP3K7) binding protein 3 | AD118: Yes | AE118: No | AF118: No | AG118: Yes | AH118: No | AI118: No | AJ118: No
A119: 17 | B119: 82458493 | C119: 82458693 | D119: 201 | E119: 798.69 | F119: 582.16 | G119: 878.69 | H119: 1364.20 | I119: 1216.33 | J119: 1259.64 | K119: 1522.61 | L119: 999.08 | M119: 1417.13 | N119: =AVERAGE(E119:G119) -> 753.18 | O119: =AVERAGE(H119:J119) -> 1280.05 | P119: =AVERAGE(K119:M119) -> 1312.94 | Q119: 9.5568 | R119: 10.3220 | S119: 0.77 | T119: 0.0006 | U119: 0.0240 | V119: 10.3586 | W119: 0.80 | X119: 0.0038 | Y119: 0.0942 | Z119: Yes | AA119: -71 | AB119: NARF | AC119: nuclear prelamin A recognition factor | AD119: Yes | AE119: No | AF119: Yes | AG119: Yes | AH119: No | AI119: No | AJ119: No
A120: 19 | B120: 58278730 | C120: 58278930 | D120: 201 | E120: 605.81 | F120: 467.45 | G120: 678.17 | H120: 1007.04 | I120: 880.25 | J120: 1168.99 | K120: 1022.81 | L120: 765.45 | M120: 1362.24 | N120: =AVERAGE(E120:G120) -> 583.81 | O120: =AVERAGE(H120:J120) -> 1018.76 | P120: =AVERAGE(K120:M120) -> 1050.17 | Q120: 9.1894 | R120: 9.9926 | S120: 0.80 | T120: 0.0005 | U120: 0.0240 | V120: 10.0364 | W120: 0.85 | X120: 0.0038 | Y120: 0.0942 | Z120: Yes | AA120: -125 | AB120: ZNF8 | AC120: zinc finger protein 8 | AD120: Yes | AE120: No | AF120: Yes | AG120: Yes | AH120: No | AI120: No | AJ120: No
A121: 1 | B121: 151282029 | C121: 151282229 | D121: 201 | E121: 1167.61 | F121: 1178.66 | G121: 1192.62 | H121: 1722.30 | I121: 1428.02 | J121: 2271.88 | K121: 2078.12 | L121: 1449.43 | M121: 2227.25 | N121: =AVERAGE(E121:G121) -> 1179.63 | O121: =AVERAGE(H121:J121) -> 1807.40 | P121: =AVERAGE(K121:M121) -> 1918.26 | Q121: 10.2041 | R121: 10.8197 | S121: 0.62 | T121: 0.0066 | U121: 0.0303 | V121: 10.9056 | W121: 0.70 | X121: 0.0038 | Y121: 0.0942 | Z121: Yes | AA121: -170 | AB121: ZNF687 | AC121: zinc finger protein 687 | AD121: Yes | AE121: No | AF121: No | AG121: Yes | AH121: No | AI121: No | AJ121: No
A122: 2 | B122: 46297107 | C122: 46297307 | D122: 201 | E122: 134.62 | F122: 112.80 | G122: 155.46 | H122: 216.95 | I122: 284.65 | J122: 171.85 | K122: 258.41 | L122: 195.20 | M122: 256.12 | N122: =AVERAGE(E122:G122) -> 134.29 | O122: =AVERAGE(H122:J122) -> 224.48 | P122: =AVERAGE(K122:M122) -> 236.58 | Q122: 7.0693 | R122: 7.8105 | S122: 0.74 | T122: 0.0069 | U122: 0.0306 | V122: 7.8862 | W122: 0.82 | X122: 0.0038 | Y122: 0.0942 | Z122: No | AA122: -200 | AB122: EPAS1 | AC122: endothelial PAS domain protein 1 | AD122: Yes | AE122: No | AF122: No | AG122: Yes | AH122: No | AI122: No | AJ122: Yes
A123: 2 | B123: 61471155 | C123: 61471355 | D123: 201 | E123: 393.52 | F123: 305.90 | G123: 477.65 | H123: 740.83 | I123: 631.48 | J123: 587.33 | K123: 716.43 | L123: 548.72 | M123: 838.27 | N123: =AVERAGE(E123:G123) -> 392.35 | O123: =AVERAGE(H123:J123) -> 653.22 | P123: =AVERAGE(K123:M123) -> 701.14 | Q123: 8.6160 | R123: 9.3514 | S123: 0.74 | T123: 0.0020 | U123: 0.0240 | V123: 9.4536 | W123: 0.84 | X123: 0.0038 | Y123: 0.0942 | Z123: Yes | AA123: -168 | AB123: USP34 | AC123: ubiquitin specific peptidase 34 | AD123: Yes | AE123: No | AF123: No | AG123: Yes | AH123: No | AI123: No | AJ123: No
A124: 19 | B124: 40777992 | C124: 40778192 | D124: 201 | E124: 755.97 | F124: 526.71 | G124: 883.20 | H124: 1331.99 | I124: 1164.90 | J124: 1337.06 | K124: 1321.45 | L124: 1015.98 | M124: 1477.17 | N124: =AVERAGE(E124:G124) -> 721.96 | O124: =AVERAGE(H124:J124) -> 1277.98 | P124: =AVERAGE(K124:M124) -> 1271.53 | Q124: 9.4958 | R124: 10.3197 | S124: 0.82 | T124: 0.0005 | U124: 0.0240 | V124: 10.3124 | W124: 0.82 | X124: 0.0038 | Y124: 0.0942 | Z124: Yes | AA124: -127 | AB124: RAB4B-EGLN2 | AC124: RAB4B-EGLN2 readthrough (NMD candidate) | AD124: No | AE124: No | AF124: No | AG124: Yes | AH124: No | AI124: No | AJ124: No
A125: 17 | B125: 1829798 | C125: 1829998 | D125: 201 | E125: 286.08 | F125: 178.76 | G125: 386.77 | H125: 566.52 | I125: 535.81 | J125: 370.15 | K125: 589.55 | L125: 376.57 | M125: 734.13 | N125: =AVERAGE(E125:G125) -> 283.87 | O125: =AVERAGE(H125:J125) -> 490.82 | P125: =AVERAGE(K125:M125) -> 566.75 | Q125: 8.1491 | R125: 8.9391 | S125: 0.79 | T125: 0.0069 | U125: 0.0306 | V125: 9.1466 | W125: 1.00 | X125: 0.0038 | Y125: 0.0942 | Z125: Yes | AA125: 4 | AB125: SMYD4 | AC125: SET and MYND domain containing 4 | AD125: Yes | AE125: Yes | AF125: Yes | AG125: Yes | AH125: No | AI125: No | AJ125: No
A126: 11 | B126: 123062186 | C126: 123062386 | D126: 201 | E126: 1166.32 | F126: 889.01 | G126: 1160.32 | H126: 1826.51 | I126: 1593.06 | J126: 2047.14 | K126: 2107.52 | L126: 1351.06 | M126: 1937.82 | N126: =AVERAGE(E126:G126) -> 1071.88 | O126: =AVERAGE(H126:J126) -> 1822.24 | P126: =AVERAGE(K126:M126) -> 1798.80 | Q126: 10.0659 | R126: 10.8315 | S126: 0.77 | T126: 0.0004 | U126: 0.0240 | V126: 10.8128 | W126: 0.75 | X126: 0.0039 | Y126: 0.0942 | Z126: Yes | AA126: -150 | AB126: HSPA8 | AC126: heat shock protein family A (Hsp70) member 8 | AD126: Yes | AE126: Yes | AF126: Yes | AG126: Yes | AH126: No | AI126: No | AJ126: Yes
A127: X | B127: 149940303 | C127: 149940503 | D127: 201 | E127: 359.86 | F127: 315.46 | G127: 431.08 | H127: 636.62 | I127: 624.31 | J127: 662.87 | K127: 660.73 | L127: 528.74 | M127: 713.02 | N127: =AVERAGE(E127:G127) -> 368.80 | O127: =AVERAGE(H127:J127) -> 641.27 | P127: =AVERAGE(K127:M127) -> 634.16 | Q127: 8.5267 | R127: 9.3248 | S127: 0.80 | T127: 0.0003 | U127: 0.0240 | V127: 9.3087 | W127: 0.78 | X127: 0.0039 | Y127: 0.0942 | Z127: Yes | AA127: 1855 | AB127: EOLA2-DT | AC127: EOLA2 divergent transcript | AD127: No | AE127: No | AF127: No | AG127: No | AH127: Yes | AI127: No | AJ127: No
A128: 4 | B128: 75673407 | C128: 75673607 | D128: 201 | E128: 618.76 | F128: 564.00 | G128: 794.58 | H128: 1172.83 | I128: 1029.75 | J128: 1491.92 | K128: 1288.96 | L128: 794.65 | M128: 1499.69 | N128: =AVERAGE(E128:G128) -> 659.11 | O128: =AVERAGE(H128:J128) -> 1231.50 | P128: =AVERAGE(K128:M128) -> 1194.43 | Q128: 9.3644 | R128: 10.2662 | S128: 0.90 | T128: 0.0001 | U128: 0.0240 | V128: 10.2221 | W128: 0.86 | X128: 0.0039 | Y128: 0.0942 | Z128: Yes | AA128: -24 | AB128: G3BP2 | AC128: G3BP stress granule assembly factor 2 | AD128: Yes | AE128: No | AF128: No | AG128: Yes | AH128: No | AI128: No | AJ128: No
A129: X | B129: 124346410 | C129: 124346610 | D129: 201 | E129: 56.96 | F129: 48.75 | G129: 59.33 | H129: 89.05 | I129: 136.34 | J129: 122.75 | K129: 99.03 | L129: 76.85 | M129: 152.92 | N129: =AVERAGE(E129:G129) -> 55.01 | O129: =AVERAGE(H129:J129) -> 116.05 | P129: =AVERAGE(K129:M129) -> 109.60 | Q129: 5.7817 | R129: 6.8586 | S129: 1.08 | T129: 0.0007 | U129: 0.0240 | V129: 6.7761 | W129: 0.99 | X129: 0.0039 | Y129: 1.0000 | Z129: No | AA129: -53 | AB129: SH2D1A | AC129: SH2 domain containing 1A | AD129: Yes | AE129: No | AF129: No | AG129: Yes | AH129: No | AI129: No | AJ129: No
A130: 7 | B130: 108526162 | C130: 108526362 | D130: 201 | E130: 1095.12 | F130: 982.69 | G130: 1197.87 | H130: 1716.61 | I130: 1492.60 | J130: 2117.02 | K130: 1951.23 | L130: 1318.78 | M130: 2242.73 | N130: =AVERAGE(E130:G130) -> 1091.90 | O130: =AVERAGE(H130:J130) -> 1775.41 | P130: =AVERAGE(K130:M130) -> 1837.58 | Q130: 10.0926 | R130: 10.7939 | S130: 0.70 | T130: 0.0013 | U130: 0.0240 | V130: 10.8436 | W130: 0.75 | X130: 0.0039 | Y130: 0.0942 | Z130: Yes | AA130: -127 | AB130: PNPLA8 | AC130: patatin like phospholipase domain containing 8 | AD130: Yes | AE130: No | AF130: Yes | AG130: Yes | AH130: No | AI130: No | AJ130: No
A131: 16 | B131: 74937000 | C131: 74937200 | D131: 201 | E131: 28.48 | F131: 36.33 | G131: 35.30 | H131: 48.32 | I131: 65.78 | J131: 77.43 | K131: 91.29 | L131: 46.11 | M131: 76.46 | N131: =AVERAGE(E131:G131) -> 33.37 | O131: =AVERAGE(H131:J131) -> 63.84 | P131: =AVERAGE(K131:M131) -> 71.29 | Q131: 5.0604 | R131: 5.9964 | S131: 0.94 | T131: 0.0141 | U131: 0.0418 | V131: 6.1556 | W131: 1.10 | X131: 0.0039 | Y131: 1.0000 | Z131: No | AA131: 48023 | AB131: WDR59 | AC131: WD repeat domain 59 | AD131: Yes | AE131: No | AF131: No | AG131: No | AH131: No | AI131: Yes | AJ131: No
A132: 7 | B132: 7640483 | C132: 7640683 | D132: 201 | E132: 956.61 | F132: 907.17 | G132: 1143.05 | H132: 1510.09 | I132: 1358.65 | J132: 2464.51 | K132: 1781.02 | L132: 1200.43 | M132: 2220.21 | N132: =AVERAGE(E132:G132) -> 1002.28 | O132: =AVERAGE(H132:J132) -> 1777.75 | P132: =AVERAGE(K132:M132) -> 1733.89 | Q132: 9.9691 | R132: 10.7958 | S132: 0.83 | T132: 0.0013 | U132: 0.0240 | V132: 10.7598 | W132: 0.79 | X132: 0.0039 | Y132: 0.0942 | Z132: Yes | AA132: -169 | AB132: UMAD1 | AC132: UBAP1-MVB12-associated (UMA) domain containing 1 | AD132: Yes | AE132: No | AF132: No | AG132: Yes | AH132: No | AI132: No | AJ132: Yes
A133: X | B133: 153928294 | C133: 153928494 | D133: 201 | E133: 568.27 | F133: 443.55 | G133: 566.27 | H133: 895.25 | I133: 714.01 | J133: 1084.00 | K133: 929.97 | L133: 700.89 | M133: 1106.59 | N133: =AVERAGE(E133:G133) -> 526.03 | O133: =AVERAGE(H133:J133) -> 897.76 | P133: =AVERAGE(K133:M133) -> 912.48 | Q133: 9.0390 | R133: 9.8102 | S133: 0.77 | T133: 0.0010 | U133: 0.0240 | V133: 9.8337 | W133: 0.79 | X133: 0.0040 | Y133: 0.0942 | Z133: Yes | AA133: -2130 | AB133: ARHGAP4 | AC133: Rho GTPase activating protein 4 | AD133: Yes | AE133: No | AF133: No | AG133: No | AH133: Yes | AI133: No | AJ133: Yes
A134: 13 | B134: 74133855 | C134: 74134055 | D134: 201 | E134: 494.49 | F134: 407.22 | G134: 609.08 | H134: 920.83 | I134: 807.30 | J134: 1125.55 | K134: 962.46 | L134: 683.98 | M134: 1007.14 | N134: =AVERAGE(E134:G134) -> 503.60 | O134: =AVERAGE(H134:J134) -> 951.23 | P134: =AVERAGE(K134:M134) -> 884.53 | Q134: 8.9761 | R134: 9.8936 | S134: 0.92 | T134: 0.0001 | U134: 0.0240 | V134: 9.7888 | W134: 0.81 | X134: 0.0040 | Y134: 0.0942 | Z134: Yes | AA134: -26 | AB134: KLF12 | AC134: KLF transcription factor 12 | AD134: Yes | AE134: No | AF134: No | AG134: Yes | AH134: No | AI134: No | AJ134: No
A135: 11 | B135: 74493122 | C135: 74493322 | D135: 201 | E135: 493.19 | F135: 359.43 | G135: 560.26 | H135: 848.83 | I135: 834.80 | J135: 717.63 | K135: 880.45 | L135: 613.28 | M135: 1085.01 | N135: =AVERAGE(E135:G135) -> 470.96 | O135: =AVERAGE(H135:J135) -> 800.42 | P135: =AVERAGE(K135:M135) -> 859.58 | Q135: 8.8795 | R135: 9.6446 | S135: 0.77 | T135: 0.0010 | U135: 0.0240 | V135: 9.7475 | W135: 0.87 | X135: 0.0040 | Y135: 0.0942 | Z135: Yes | AA135: -163 | AB135: LIPT2-AS1 | AC135: LIPT2 antisense RNA 1 | AD135: No | AE135: No | AF135: No | AG135: Yes | AH135: No | AI135: No | AJ135: No
A136: 11 | B136: 59615830 | C136: 59616030 | D136: 201 | E136: 1300.94 | F136: 1005.63 | G136: 1490.02 | H136: 2033.03 | I136: 1776.05 | J136: 2521.16 | K136: 2308.67 | L136: 1696.89 | M136: 2216.46 | N136: =AVERAGE(E136:G136) -> 1265.53 | O136: =AVERAGE(H136:J136) -> 2110.08 | P136: =AVERAGE(K136:M136) -> 2074.01 | Q136: 10.3055 | R136: 11.0431 | S136: 0.74 | T136: 0.0017 | U136: 0.0240 | V136: 11.0182 | W136: 0.71 | X136: 0.0040 | Y136: 0.0942 | Z136: Yes | AA136: -156 | AB136: OSBP | AC136: oxysterol binding protein | AD136: Yes | AE136: No | AF136: No | AG136: Yes | AH136: No | AI136: No | AJ136: No
A137: 17 | B137: 44324750 | C137: 44324950 | D137: 201 | E137: 63.43 | F137: 39.19 | G137: 90.87 | H137: 131.68 | I137: 125.58 | J137: 113.31 | K137: 150.09 | L137: 78.39 | M137: 195.61 | N137: =AVERAGE(E137:G137) -> 64.50 | O137: =AVERAGE(H137:J137) -> 123.52 | P137: =AVERAGE(K137:M137) -> 141.36 | Q137: 6.0112 | R137: 6.9487 | S137: 0.94 | T137: 0.0057 | U137: 0.0287 | V137: 7.1433 | W137: 1.13 | X137: 0.0040 | Y137: 1.0000 | Z137: No | AA137: 20 | AB137: SLC25A39 | AC137: solute carrier family 25 member 39 | AD137: Yes | AE137: No | AF137: No | AG137: Yes | AH137: No | AI137: No | AJ137: No
A138: 21 | B138: 45224673 | C138: 45224873 | D138: 201 | E138: 151.45 | F138: 165.38 | G138: 141.94 | H138: 275.68 | I138: 216.47 | J138: 285.16 | K138: 307.93 | L138: 212.11 | M138: 274.42 | N138: =AVERAGE(E138:G138) -> 152.92 | O138: =AVERAGE(H138:J138) -> 259.11 | P138: =AVERAGE(K138:M138) -> 264.82 | Q138: 7.2567 | R138: 8.0174 | S138: 0.76 | T138: 0.0019 | U138: 0.0240 | V138: 8.0489 | W138: 0.79 | X138: 0.0040 | Y138: 0.0942 | Z138: Yes | AA138: -9567 | AB138: LINC00334 | AC138: long intergenic non-protein coding RNA 334 | AD138: No | AE138: No | AF138: No | AG138: No | AH138: Yes | AI138: No | AJ138: No
A139: 21 | B139: 44930626 | C139: 44930826 | D139: 201 | E139: 76.37 | F139: 84.12 | G139: 109.65 | H139: 133.58 | I139: 194.95 | J139: 156.75 | K139: 154.74 | L139: 142.94 | M139: 195.61 | N139: =AVERAGE(E139:G139) -> 90.05 | O139: =AVERAGE(H139:J139) -> 161.76 | P139: =AVERAGE(K139:M139) -> 164.43 | Q139: 6.4926 | R139: 7.3377 | S139: 0.85 | T139: 0.0040 | U139: 0.0261 | V139: 7.3613 | W139: 0.87 | X139: 0.0040 | Y139: 1.0000 | Z139: No | AA139: -1911 | AB139: ITGB2 | AC139: integrin subunit beta 2 | AD139: Yes | AE139: No | AF139: No | AG139: No | AH139: Yes | AI139: No | AJ139: No
A140: 10 | B140: 11178761 | C140: 11178961 | D140: 201 | E140: 336.56 | F140: 286.78 | G140: 391.28 | H140: 503.99 | I140: 534.61 | J140: 834.72 | K140: 645.25 | L140: 427.30 | M140: 759.93 | N140: =AVERAGE(E140:G140) -> 338.21 | O140: =AVERAGE(H140:J140) -> 624.44 | P140: =AVERAGE(K140:M140) -> 610.83 | Q140: 8.4018 | R140: 9.2864 | S140: 0.88 | T140: 0.0006 | U140: 0.0240 | V140: 9.2546 | W140: 0.85 | X140: 0.0040 | Y140: 0.0942 | Z140: Yes | AA140: 13831 | AB140: CELF2 | AC140: CUGBP Elav-like family member 2 | AD140: Yes | AE140: No | AF140: No | AG140: No | AH140: No | AI140: Yes | AJ140: No
A141: 20 | B141: 44521966 | C141: 44522166 | D141: 201 | E141: 112.62 | F141: 102.28 | G141: 144.95 | H141: 211.26 | I141: 228.43 | J141: 258.73 | K141: 247.58 | L141: 149.09 | M141: 277.70 | N141: =AVERAGE(E141:G141) -> 119.95 | O141: =AVERAGE(H141:J141) -> 232.81 | P141: =AVERAGE(K141:M141) -> 224.79 | Q141: 6.9063 | R141: 7.8630 | S141: 0.96 | T141: 0.0003 | U141: 0.0240 | V141: 7.8124 | W141: 0.91 | X141: 0.0040 | Y141: 0.0942 | Z141: No | AA141: 4 | AB141: SERINC3 | AC141: serine incorporator 3 | AD141: Yes | AE141: No | AF141: Yes | AG141: Yes | AH141: No | AI141: No | AJ141: No
A142: 1 | B142: 226939979 | C142: 226940179 | D142: 201 | E142: 1009.69 | F142: 1089.75 | G142: 1100.99 | H142: 1803.77 | I142: 1444.76 | J142: 1905.51 | K142: 1954.33 | L142: 1317.24 | M142: 1966.90 | N142: =AVERAGE(E142:G142) -> 1066.81 | O142: =AVERAGE(H142:J142) -> 1718.01 | P142: =AVERAGE(K142:M142) -> 1746.16 | Q142: 10.0591 | R142: 10.7465 | S142: 0.69 | T142: 0.0009 | U142: 0.0240 | V142: 10.7700 | W142: 0.71 | X142: 0.0040 | Y142: 0.0942 | Z142: Yes | AA142: -215 | AB142: COQ8A | AC142: coenzyme Q8A | AD142: Yes | AE142: No | AF142: No | AG142: Yes | AH142: No | AI142: No | AJ142: No
A143: 17 | B143: 81094988 | C143: 81095188 | D143: 201 | E143: 211.00 | F143: 184.49 | G143: 276.37 | H143: 273.79 | I143: 307.37 | J143: 498.57 | K143: 397.67 | L143: 298.19 | M143: 552.59 | N143: =AVERAGE(E143:G143) -> 223.96 | O143: =AVERAGE(H143:J143) -> 359.91 | P143: =AVERAGE(K143:M143) -> 416.15 | Q143: 7.8071 | R143: 8.4915 | S143: 0.68 | T143: 0.0173 | U143: 0.0462 | V143: 8.7010 | W143: 0.89 | X143: 0.0041 | Y143: 0.0942 | Z143: Yes | AA143: -2523 | AB143: BAIAP2 | AC143: BAR/IMD domain containing adaptor protein 2 | AD143: Yes | AE143: No | AF143: Yes | AG143: No | AH143: Yes | AI143: No | AJ143: No
A144: 3 | B144: 186109171 | C144: 186109371 | D144: 201 | E144: 464.71 | F144: 486.57 | G144: 583.54 | H144: 791.99 | I144: 643.44 | J144: 1174.65 | K144: 1008.88 | L144: 613.28 | M144: 1137.08 | N144: =AVERAGE(E144:G144) -> 511.61 | O144: =AVERAGE(H144:J144) -> 870.03 | P144: =AVERAGE(K144:M144) -> 919.75 | Q144: 8.9989 | R144: 9.7649 | S144: 0.77 | T144: 0.0028 | U144: 0.0246 | V144: 9.8451 | W144: 0.85 | X144: 0.0041 | Y144: 0.0942 | Z144: Yes | AA144: -182 | AB144: ETV5 | AC144: ETS variant transcription factor 5 | AD144: Yes | AE144: No | AF144: No | AG144: Yes | AH144: No | AI144: No | AJ144: No
A145: 11 | B145: 62841519 | C145: 62841719 | D145: 201 | E145: 652.41 | F145: 589.81 | G145: 687.93 | H145: 973.88 | I145: 954.40 | J145: 1503.25 | K145: 1155.88 | L145: 808.48 | M145: 1361.30 | N145: =AVERAGE(E145:G145) -> 643.38 | O145: =AVERAGE(H145:J145) -> 1143.85 | P145: =AVERAGE(K145:M145) -> 1108.56 | Q145: 9.3295 | R145: 10.1597 | S145: 0.83 | T145: 0.0005 | U145: 0.0240 | V145: 10.1145 | W145: 0.78 | X145: 0.0041 | Y145: 0.0942 | Z145: Yes | AA145: 190 | AB145: WDR74 | AC145: WD repeat domain 74 | AD145: Yes | AE145: No | AF145: No | AG145: Yes | AH145: No | AI145: No | AJ145: No
A146: 7 | B146: 5397225 | C146: 5397425 | D146: 201 | E146: 630.41 | F146: 639.51 | G146: 666.90 | H146: 1119.78 | I146: 905.37 | J146: 1187.87 | K146: 1080.06 | L146: 849.98 | M146: 1338.79 | N146: =AVERAGE(E146:G146) -> 645.61 | O146: =AVERAGE(H146:J146) -> 1071.01 | P146: =AVERAGE(K146:M146) -> 1089.61 | Q146: 9.3345 | R146: 10.0648 | S146: 0.73 | T146: 0.0005 | U146: 0.0240 | V146: 10.0896 | W146: 0.76 | X146: 0.0041 | Y146: 0.0942 | Z146: Yes | AA146: 26221 | AB146: TNRC18 | AC146: trinucleotide repeat containing 18 | AD146: Yes | AE146: No | AF146: No | AG146: No | AH146: No | AI146: Yes | AJ146: No
A147: X | B147: 65667558 | C147: 65667758 | D147: 201 | E147: 183.81 | F147: 158.68 | G147: 197.52 | H147: 312.63 | I147: 313.35 | J147: 385.26 | K147: 363.63 | L147: 213.65 | M147: 417.02 | N147: =AVERAGE(E147:G147) -> 180.01 | O147: =AVERAGE(H147:J147) -> 337.08 | P147: =AVERAGE(K147:M147) -> 331.43 | Q147: 7.4919 | R147: 8.3969 | S147: 0.91 | T147: 0.0001 | U147: 0.0240 | V147: 8.3726 | W147: 0.88 | X147: 0.0041 | Y147: 0.0942 | Z147: Yes | AA147: 4 | AB147: MSN | AC147: moesin | AD147: Yes | AE147: No | AF147: No | AG147: Yes | AH147: No | AI147: No | AJ147: No
A148: 11 | B148: 13277465 | C148: 13277665 | D148: 201 | E148: 752.09 | F148: 654.81 | G148: 831.38 | H148: 1231.57 | I148: 1114.67 | J148: 1323.85 | K148: 1372.52 | L148: 965.26 | M148: 1438.70 | N148: =AVERAGE(E148:G148) -> 746.09 | O148: =AVERAGE(H148:J148) -> 1223.36 | P148: =AVERAGE(K148:M148) -> 1258.83 | Q148: 9.5432 | R148: 10.2566 | S148: 0.71 | T148: 0.0006 | U148: 0.0240 | V148: 10.2979 | W148: 0.75 | X148: 0.0041 | Y148: 0.0942 | Z148: Yes | AA148: -162 | AB148: BMAL1 | AC148: basic helix-loop-helix ARNT like 1 | AD148: Yes | AE148: No | AF148: No | AG148: Yes | AH148: No | AI148: No | AJ148: No
A149: 2 | B149: 8681839 | C149: 8682039 | D149: 201 | E149: 440.12 | F149: 286.78 | G149: 534.72 | H149: 719.04 | I149: 727.16 | J149: 823.39 | K149: 844.86 | L149: 530.28 | M149: 1058.27 | N149: =AVERAGE(E149:G149) -> 420.54 | O149: =AVERAGE(H149:J149) -> 756.53 | P149: =AVERAGE(K149:M149) -> 811.14 | Q149: 8.7161 | R149: 9.5633 | S149: 0.85 | T149: 0.0009 | U149: 0.0240 | V149: 9.6638 | W149: 0.95 | X149: 0.0041 | Y149: 0.0942 | Z149: Yes | AA149: -76 | AB149: ID2-AS1 | AC149: ID2 antisense RNA 1 | AD149: No | AE149: No | AF149: No | AG149: Yes | AH149: No | AI149: No | AJ149: No
A150: 2 | B150: 218230968 | C150: 218231168 | D150: 201 | E150: 97.09 | F150: 85.08 | G150: 85.62 | H150: 154.42 | I150: 120.80 | J150: 222.84 | K150: 147.00 | L150: 126.04 | M150: 221.88 | N150: =AVERAGE(E150:G150) -> 89.26 | O150: =AVERAGE(H150:J150) -> 166.02 | P150: =AVERAGE(K150:M150) -> 164.97 | Q150: 6.4799 | R150: 7.3752 | S150: 0.90 | T150: 0.0030 | U150: 0.0246 | V150: 7.3661 | W150: 0.89 | X150: 0.0041 | Y150: 1.0000 | Z150: No | AA150: 13671 | AB150: ARPC2 | AC150: actin related protein 2/3 complex subunit 2 | AD150: Yes | AE150: No | AF150: No | AG150: No | AH150: No | AI150: Yes | AJ150: No
A151: 13 | B151: 30607969 | C151: 30608169 | D151: 201 | E151: 116.50 | F151: 98.46 | G151: 128.42 | H151: 162.00 | I151: 179.40 | J151: 253.06 | K151: 208.89 | L151: 159.85 | M151: 243.46 | N151: =AVERAGE(E151:G151) -> 114.46 | O151: =AVERAGE(H151:J151) -> 198.15 | P151: =AVERAGE(K151:M151) -> 204.07 | Q151: 6.8387 | R151: 7.6305 | S151: 0.79 | T151: 0.0049 | U151: 0.0275 | V151: 7.6729 | W151: 0.83 | X151: 0.0041 | Y151: 0.0942 | Z151: No | AA151: 9518 | AB151: HMGB1 | AC151: high mobility group box 1 | AD151: Yes | AE151: No | AF151: No | AG151: No | AH151: Yes | AI151: No | AJ151: No
A152: 22 | B152: 19432301 | C152: 19432501 | D152: 201 | E152: 442.71 | F152: 297.29 | G152: 413.06 | H152: 719.99 | I152: 654.21 | J152: 577.88 | K152: 765.95 | L152: 507.22 | M152: 785.26 | N152: =AVERAGE(E152:G152) -> 384.35 | O152: =AVERAGE(H152:J152) -> 650.69 | P152: =AVERAGE(K152:M152) -> 686.14 | Q152: 8.5863 | R152: 9.3458 | S152: 0.76 | T152: 0.0011 | U152: 0.0240 | V152: 9.4224 | W152: 0.84 | X152: 0.0042 | Y152: 0.0942 | Z152: Yes | AA152: -144 | AB152: MRPL40 | AC152: mitochondrial ribosomal protein L40 | AD152: Yes | AE152: No | AF152: No | AG152: Yes | AH152: No | AI152: No | AJ152: No
A153: 19 | B153: 8390104 | C153: 8390304 | D153: 201 | E153: 1025.22 | F153: 770.48 | G153: 1150.56 | H153: 1706.19 | I153: 1430.41 | J153: 2151.01 | K153: 1822.80 | L153: 1188.13 | M153: 2169.55 | N153: =AVERAGE(E153:G153) -> 982.09 | O153: =AVERAGE(H153:J153) -> 1762.54 | P153: =AVERAGE(K153:M153) -> 1726.83 | Q153: 9.9397 | R153: 10.7834 | S153: 0.84 | T153: 0.0005 | U153: 0.0240 | V153: 10.7539 | W153: 0.81 | X153: 0.0042 | Y153: 0.0942 | Z153: Yes | AA153: -156 | AB153: RAB11B | AC153: RAB11B, member RAS oncogene family | AD153: Yes | AE153: No | AF153: No | AG153: Yes | AH153: No | AI153: No | AJ153: Yes
A154: 11 | B154: 406963 | C154: 407163 | D154: 201 | E154: 362.45 | F154: 325.97 | G154: 490.41 | H154: 748.41 | I154: 644.64 | J154: 662.87 | K154: 711.79 | L154: 530.28 | M154: 880.02 | N154: =AVERAGE(E154:G154) -> 392.95 | O154: =AVERAGE(H154:J154) -> 685.31 | P154: =AVERAGE(K154:M154) -> 707.36 | Q154: 8.6182 | R154: 9.4206 | S154: 0.80 | T154: 0.0006 | U154: 0.0240 | V154: 9.4663 | W154: 0.85 | X154: 0.0042 | Y154: 0.0942 | Z154: Yes | AA154: 7936 | AB154: SIGIRR | AC154: single Ig and TIR domain containing | AD154: Yes | AE154: No | AF154: No | AG154: No | AH154: Yes | AI154: No | AJ154: No
A155: 2 | B155: 11155149 | C155: 11155349 | D155: 201 | E155: 502.25 | F155: 371.85 | G155: 455.12 | H155: 873.46 | I155: 660.19 | J155: 626.99 | K155: 908.31 | L155: 550.26 | M155: 907.22 | N155: =AVERAGE(E155:G155) -> 443.08 | O155: =AVERAGE(H155:J155) -> 720.21 | P155: =AVERAGE(K155:M155) -> 788.60 | Q155: 8.7914 | R155: 9.4923 | S155: 0.70 | T155: 0.0025 | U155: 0.0243 | V155: 9.6231 | W155: 0.83 | X155: 0.0042 | Y155: 0.0942 | Z155: Yes | AA155: -123 | AB155: SLC66A3 | AC155: solute carrier family 66 member 3 | AD155: Yes | AE155: No | AF155: No | AG155: Yes | AH155: No | AI155: No | AJ155: No
A156: 13 | B156: 110713018 | C156: 110713218 | D156: 201 | E156: 888.01 | F156: 701.65 | G156: 1022.89 | H156: 1491.14 | I156: 1313.20 | J156: 1729.87 | K156: 1620.10 | L156: 1103.59 | M156: 1776.45 | N156: =AVERAGE(E156:G156) -> 870.85 | O156: =AVERAGE(H156:J156) -> 1511.41 | P156: =AVERAGE(K156:M156) -> 1500.05 | Q156: 9.7663 | R156: 10.5617 | S156: 0.80 | T156: 0.0004 | U156: 0.0240 | V156: 10.5508 | W156: 0.78 | X156: 0.0042 | Y156: 0.0942 | Z156: Yes | AA156: -145 | AB156: ING1 | AC156: inhibitor of growth family member 1 | AD156: Yes | AE156: No | AF156: No | AG156: Yes | AH156: No | AI156: No | AJ156: No
A157: 15 | B157: 85625951 | C157: 85626151 | D157: 201 | E157: 240.77 | F157: 194.05 | G157: 227.56 | H157: 351.47 | I157: 395.87 | J157: 506.12 | K157: 441.00 | L157: 275.13 | M157: 466.28 | N157: =AVERAGE(E157:G157) -> 220.79 | O157: =AVERAGE(H157:J157) -> 417.82 | P157: =AVERAGE(K157:M157) -> 394.14 | Q157: 7.7866 | R157: 8.7067 | S157: 0.92 | T157: 0.0001 | U157: 0.0240 | V157: 8.6225 | W157: 0.84 | X157: 0.0043 | Y157: 0.0942 | Z157: Yes | AA157: 6101 | AB157: AKAP13 | AC157: A-kinase anchoring protein 13 | AD157: Yes | AE157: No | AF157: No | AG157: No | AH157: Yes | AI157: No | AJ157: No
A158: 8 | B158: 144104263 | C158: 144104463 | D158: 201 | E158: 1023.93 | F158: 681.57 | G158: 922.25 | H158: 1410.62 | I158: 1429.21 | J158: 1712.88 | K158: 1734.60 | L158: 1088.22 | M158: 1755.81 | N158: =AVERAGE(E158:G158) -> 875.92 | O158: =AVERAGE(H158:J158) -> 1517.57 | P158: =AVERAGE(K158:M158) -> 1526.21 | Q158: 9.7746 | R158: 10.5675 | S158: 0.79 | T158: 0.0005 | U158: 0.0240 | V158: 10.5757 | W158: 0.80 | X158: 0.0043 | Y158: 0.0942 | Z158: Yes | AA158: -98 | AB158: MAF1 | AC158: MAF1 homolog, negative regulator of RNA polymerase III | AD158: Yes | AE158: No | AF158: No | AG158: Yes | AH158: No | AI158: No | AJ158: Yes
A159: 10 | B159: 6163658 | C159: 6163858 | D159: 201 | E159: 300.32 | F159: 246.63 | G159: 376.26 | H159: 602.52 | I159: 639.86 | J159: 394.70 | K159: 594.19 | L159: 431.91 | M159: 600.44 | N159: =AVERAGE(E159:G159) -> 307.74 | O159: =AVERAGE(H159:J159) -> 545.69 | P159: =AVERAGE(K159:M159) -> 542.18 | Q159: 8.2655 | R159: 9.0919 | S159: 0.83 | T159: 0.0015 | U159: 0.0240 | V159: 9.0826 | W159: 0.82 | X159: 0.0043 | Y159: 0.0942 | Z159: Yes | AA159: -11496 | AB159: MIR3155B | AC159: microRNA 3155b | AD159: No | AE159: No | AF159: Yes | AG159: No | AH159: No | AI159: Yes | AJ159: Yes
A160: 19 | B160: 45507322 | C160: 45507522 | D160: 201 | E160: 335.27 | F160: 308.76 | G160: 412.31 | H160: 645.15 | I160: 673.34 | J160: 668.53 | K160: 648.35 | L160: 464.19 | M160: 744.45 | N160: =AVERAGE(E160:G160) -> 352.11 | O160: =AVERAGE(H160:J160) -> 662.34 | P160: =AVERAGE(K160:M160) -> 618.99 | Q160: 8.4599 | R160: 9.3714 | S160: 0.91 | T160: 0.0000 | U160: 0.0240 | V160: 9.2738 | W160: 0.81 | X160: 0.0043 | Y160: 0.0942 | Z160: Yes | AA160: -57 | AB160: VASP | AC160: vasodilator stimulated phosphoprotein | AD160: Yes | AE160: No | AF160: Yes | AG160: Yes | AH160: No | AI160: No | AJ160: No
A161: 10 | B161: 74589385 | C161: 74589585 | D161: 201 | E161: 112.62 | F161: 84.12 | G161: 139.69 | H161: 168.63 | I161: 180.60 | J161: 236.06 | K161: 219.73 | L161: 155.24 | M161: 249.09 | N161: =AVERAGE(E161:G161) -> 112.14 | O161: =AVERAGE(H161:J161) -> 195.10 | P161: =AVERAGE(K161:M161) -> 208.02 | Q161: 6.8092 | R161: 7.6080 | S161: 0.80 | T161: 0.0059 | U161: 0.0289 | V161: 7.7006 | W161: 0.89 | X161: 0.0043 | Y161: 0.0942 | Z161: No | AA161: -60161 | AB161: LOC102723439 | AC161: uncharacterized LOC102723439 | AD161: No | AE161: No | AF161: No | AG161: No | AH161: No | AI161: Yes | AJ161: No
A162: 2 | B162: 31932381 | C162: 31932581 | D162: 201 | E162: 5.18 | F162: 6.69 | G162: 3.76 | H162: 6.63 | I162: 8.37 | J162: 5.67 | K162: 15.47 | L162: 16.91 | M162: 21.58 | N162: =AVERAGE(E162:G162) -> 5.21 | O162: =AVERAGE(H162:J162) -> 6.89 | P162: =AVERAGE(K162:M162) -> 17.99 | Q162: 2.3808 | R162: 2.7844 | S162: 0.40 | T162: 0.6215 | U162: 1.0000 | V162: 4.1688 | W162: 1.79 | X162: 0.0043 | Y162: 1.0000 | Z162: No | AA162: 78283 | AB162: MEMO1 | AC162: mediator of cell motility 1 | AD162: Yes | AE162: No | AF162: No | AG162: No | AH162: No | AI162: Yes | AJ162: No
A163: 19 | B163: 35757912 | C163: 35758112 | D163: 201 | E163: 746.91 | F163: 548.70 | G163: 869.68 | H163: 1186.09 | I163: 1002.24 | J163: 1756.31 | K163: 1370.97 | L163: 900.70 | M163: 1614.61 | N163: =AVERAGE(E163:G163) -> 721.76 | O163: =AVERAGE(H163:J163) -> 1314.88 | P163: =AVERAGE(K163:M163) -> 1295.43 | Q163: 9.4954 | R163: 10.3607 | S163: 0.87 | T163: 0.0011 | U163: 0.0240 | V163: 10.3392 | W163: 0.84 | X163: 0.0044 | Y163: 0.0942 | Z163: Yes | AA163: -164 | AB163: PROSER3 | AC163: proline and serine rich 3 | AD163: Yes | AE163: No | AF163: No | AG163: Yes | AH163: No | AI163: No | AJ163: Yes
A164: 19 | B164: 45178392 | C164: 45178592 | D164: 201 | E164: 1405.79 | F164: 879.45 | G164: 1522.31 | H164: 2135.35 | I164: 1718.64 | J164: 2853.54 | K164: 2410.80 | L164: 1600.06 | M164: 2612.37 | N164: =AVERAGE(E164:G164) -> 1269.19 | O164: =AVERAGE(H164:J164) -> 2235.84 | P164: =AVERAGE(K164:M164) -> 2207.74 | Q164: 10.3097 | R164: 11.1266 | S164: 0.82 | T164: 0.0023 | U164: 0.0241 | V164: 11.1084 | W164: 0.80 | X164: 0.0044 | Y164: 0.0942 | Z164: Yes | AA164: -255 | AB164: TRAPPC6A | AC164: trafficking protein particle complex subunit 6A | AD164: Yes | AE164: No | AF164: Yes | AG164: Yes | AH164: No | AI164: No | AJ164: No
A165: 10 | B165: 79826431 | C165: 79826631 | D165: 201 | E165: 273.13 | F165: 231.33 | G165: 313.17 | H165: 530.52 | I165: 502.32 | J165: 498.57 | K165: 558.60 | L165: 395.02 | M165: 458.77 | N165: =AVERAGE(E165:G165) -> 272.55 | O165: =AVERAGE(H165:J165) -> 510.47 | P165: =AVERAGE(K165:M165) -> 470.80 | Q165: 8.0904 | R165: 8.9957 | S165: 0.91 | T165: 0.0001 | U165: 0.0240 | V165: 8.8790 | W165: 0.79 | X165: 0.0044 | Y165: 0.0942 | Z165: Yes | AA165: 63 | AB165: NUTM2B-AS1 | AC165: NUTM2B antisense RNA 1 | AD165: No | AE165: No | AF165: No | AG165: Yes | AH165: No | AI165: No | AJ165: No
A166: 12 | B166: 56300345 | C166: 56300545 | D166: 201 | E166: 775.39 | F166: 560.17 | G166: 859.16 | H166: 1248.62 | I166: 1143.37 | J166: 1427.71 | K166: 1375.61 | L166: 945.28 | M166: 1524.08 | N166: =AVERAGE(E166:G166) -> 731.57 | O166: =AVERAGE(H166:J166) -> 1273.23 | P166: =AVERAGE(K166:M166) -> 1281.66 | Q166: 9.5149 | R166: 10.3143 | S166: 0.80 | T166: 0.0005 | U166: 0.0240 | V166: 10.3238 | W166: 0.81 | X166: 0.0044 | Y166: 0.0942 | Z166: Yes | AA166: -115 | AB166: CS | AC166: citrate synthase | AD166: Yes | AE166: No | AF166: Yes | AG166: Yes | AH166: No | AI166: No | AJ166: No
A167: 3 | B167: 9396977 | C167: 9397177 | D167: 201 | E167: 1343.66 | F167: 944.45 | G167: 1170.09 | H167: 2087.98 | I167: 1740.17 | J167: 1835.63 | K167: 2279.27 | L167: 1744.54 | M167: 1637.13 | N167: =AVERAGE(E167:G167) -> 1152.73 | O167: =AVERAGE(H167:J167) -> 1887.93 | P167: =AVERAGE(K167:M167) -> 1886.98 | Q167: 10.1708 | R167: 10.8826 | S167: 0.71 | T167: 0.0011 | U167: 0.0240 | V167: 10.8819 | W167: 0.71 | X167: 0.0044 | Y167: 0.0942 | Z167: Yes | AA167: 417 | AB167: THUMPD3-AS1 | AC167: THUMPD3 antisense RNA 1 | AD167: No | AE167: No | AF167: No | AG167: Yes | AH167: No | AI167: No | AJ167: No
A168: 11 | B168: 65919224 | C168: 65919424 | D168: 201 | E168: 488.01 | F168: 376.63 | G168: 539.23 | H168: 836.52 | I168: 727.16 | J168: 744.07 | K168: 846.41 | L168: 644.02 | M168: 933.96 | N168: =AVERAGE(E168:G168) -> 467.96 | O168: =AVERAGE(H168:J168) -> 769.25 | P168: =AVERAGE(K168:M168) -> 808.13 | Q168: 8.8702 | R168: 9.5873 | S168: 0.72 | T168: 0.0013 | U168: 0.0240 | V168: 9.6584 | W168: 0.79 | X168: 0.0044 | Y168: 0.0942 | Z168: Yes | AA168: -102 | AB168: DRAP1 | AC168: DR1 associated protein 1 | AD168: Yes | AE168: No | AF168: No | AG168: Yes | AH168: No | AI168: No | AJ168: No
A169: 11 | B169: 126268896 | C169: 126269096 | D169: 201 | E169: 767.62 | F169: 518.11 | G169: 989.84 | H169: 1279.88 | I169: 1085.96 | J169: 1686.44 | K169: 1485.47 | L169: 906.85 | M169: 1959.40 | N169: =AVERAGE(E169:G169) -> 758.52 | O169: =AVERAGE(H169:J169) -> 1350.76 | P169: =AVERAGE(K169:M169) -> 1450.57 | Q169: 9.5671 | R169: 10.3996 | S169: 0.83 | T169: 0.0020 | U169: 0.0240 | V169: 10.5024 | W169: 0.94 | X169: 0.0044 | Y169: 0.0942 | Z169: Yes | AA169: -14 | AB169: SRPRA | AC169: SRP receptor subunit alpha | AD169: Yes | AE169: No | AF169: No | AG169: Yes | AH169: No | AI169: No | AJ169: Yes
A170: 2 | B170: 171434024 | C170: 171434224 | D170: 201 | E170: 755.97 | F170: 745.62 | G170: 741.25 | H170: 1287.46 | I170: 1144.57 | J170: 1101.00 | K170: 1369.42 | L170: 982.17 | M170: 1310.17 | N170: =AVERAGE(E170:G170) -> 747.62 | O170: =AVERAGE(H170:J170) -> 1177.68 | P170: =AVERAGE(K170:M170) -> 1220.59 | Q170: 9.5462 | R170: 10.2017 | S170: 0.66 | T170: 0.0009 | U170: 0.0240 | V170: 10.2534 | W170: 0.71 | X170: 0.0044 | Y170: 0.0942 | Z170: Yes | AA170: -102 | AB170: DCAF17 | AC170: DDB1 and CUL4 associated factor 17 | AD170: Yes | AE170: No | AF170: Yes | AG170: Yes | AH170: No | AI170: No | AJ170: No
A171: 17 | B171: 68291941 | C171: 68292141 | D171: 201 | E171: 679.60 | F171: 506.64 | G171: 784.06 | H171: 1135.88 | I171: 1152.94 | J171: 1127.44 | K171: 1284.32 | L171: 893.02 | M171: 1230.90 | N171: =AVERAGE(E171:G171) -> 656.77 | O171: =AVERAGE(H171:J171) -> 1138.75 | P171: =AVERAGE(K171:M171) -> 1136.08 | Q171: 9.3592 | R171: 10.1532 | S171: 0.79 | T171: 0.0004 | U171: 0.0240 | V171: 10.1498 | W171: 0.79 | X171: 0.0045 | Y171: 0.0942 | Z171: Yes | AA171: -94 | AB171: ARSG | AC171: arylsulfatase G | AD171: Yes | AE171: No | AF171: Yes | AG171: Yes | AH171: No | AI171: No | AJ171: No
A172: 2 | B172: 128091015 | C172: 128091215 | D172: 201 | E172: 244.65 | F172: 243.76 | G172: 316.93 | H172: 426.31 | I172: 386.31 | J172: 577.88 | K172: 479.68 | L172: 355.06 | M172: 596.68 | N172: =AVERAGE(E172:G172) -> 268.45 | O172: =AVERAGE(H172:J172) -> 463.50 | P172: =AVERAGE(K172:M172) -> 477.14 | Q172: 8.0685 | R172: 8.8564 | S172: 0.79 | T172: 0.0016 | U172: 0.0240 | V172: 8.8983 | W172: 0.83 | X172: 0.0045 | Y172: 0.0942 | Z172: Yes | AA172: -85 | AB172: UGGT1 | AC172: UDP-glucose glycoprotein glucosyltransferase 1 | AD172: Yes | AE172: No | AF172: No | AG172: Yes | AH172: No | AI172: No | AJ172: No
A173: 2 | B173: 43226500 | C173: 43226700 | D173: 201 | E173: 93.20 | F173: 78.39 | G173: 138.19 | H173: 206.52 | I173: 223.65 | J173: 117.09 | K173: 244.48 | L173: 150.63 | M173: 192.80 | N173: =AVERAGE(E173:G173) -> 103.26 | O173: =AVERAGE(H173:J173) -> 182.42 | P173: =AVERAGE(K173:M173) -> 195.97 | Q173: 6.6901 | R173: 7.5111 | S173: 0.82 | T173: 0.0103 | U173: 0.0358 | V173: 7.6145 | W173: 0.92 | X173: 0.0045 | Y173: 1.0000 | Z173: No | AA173: 6 | AB173: ZFP36L2 | AC173: ZFP36 ring finger protein like 2 | AD173: Yes | AE173: No | AF173: No | AG173: Yes | AH173: No | AI173: No | AJ173: Yes
A174: 19 | B174: 17235664 | C174: 17235864 | D174: 201 | E174: 129.45 | F174: 114.71 | G174: 176.49 | H174: 247.26 | I174: 247.57 | J174: 264.39 | K174: 289.36 | L174: 184.44 | M174: 296.00 | N174: =AVERAGE(E174:G174) -> 140.22 | O174: =AVERAGE(H174:J174) -> 253.07 | P174: =AVERAGE(K174:M174) -> 256.60 | Q174: 7.1315 | R174: 7.9834 | S174: 0.85 | T174: 0.0010 | U174: 0.0240 | V174: 8.0034 | W174: 0.87 | X174: 0.0045 | Y174: 0.0942 | Z174: Yes | AA174: 9538 | AB174: OCEL1 | AC174: occludin/ELL domain containing 1 | AD174: Yes | AE174: No | AF174: No | AG174: No | AH174: Yes | AI174: No | AJ174: No
A175: 2 | B175: 88627618 | C175: 88627818 | D175: 201 | E175: 1313.89 | F175: 1211.16 | G175: 1342.82 | H175: 1756.40 | I175: 1686.35 | J175: 2772.33 | K175: 2333.43 | L175: 1544.72 | M175: 2366.10 | N175: =AVERAGE(E175:G175) -> 1289.29 | O175: =AVERAGE(H175:J175) -> 2071.70 | P175: =AVERAGE(K175:M175) -> 2081.42 | Q175: 10.3324 | R175: 11.0166 | S175: 0.68 | T175: 0.0045 | U175: 0.0267 | V175: 11.0234 | W175: 0.69 | X175: 0.0045 | Y175: 0.0942 | Z175: Yes | AA175: -111 | AB175: EIF2AK3-DT | AC175: EIF2AK3 divergent transcript | AD175: No | AE175: No | AF175: No | AG175: Yes | AH175: No | AI175: No | AJ175: No
A176: 1 | B176: 179954556 | C176: 179954756 | D176: 201 | E176: 933.31 | F176: 651.94 | G176: 1059.69 | H176: 1501.56 | I176: 1266.56 | J176: 2090.58 | K176: 1697.46 | L176: 1059.02 | M176: 2007.24 | N176: =AVERAGE(E176:G176) -> 881.65 | O176: =AVERAGE(H176:J176) -> 1619.57 | P176: =AVERAGE(K176:M176) -> 1587.91 | Q176: 9.7841 | R176: 10.6614 | S176: 0.88 | T176: 0.0007 | U176: 0.0240 | V176: 10.6329 | W176: 0.85 | X176: 0.0045 | Y176: 0.0942 | Z176: Yes | AA176: -154 | AB176: CEP350 | AC176: centrosomal protein 350 | AD176: Yes | AE176: No | AF176: No | AG176: Yes | AH176: No | AI176: No | AJ176: No
A177: 20 | B177: 63956328 | C177: 63956528 | D177: 201 | E177: 117.80 | F177: 91.77 | G177: 129.93 | H177: 177.16 | I177: 227.24 | J177: 118.98 | K177: 198.06 | L177: 227.48 | M177: 175.44 | N177: =AVERAGE(E177:G177) -> 113.16 | O177: =AVERAGE(H177:J177) -> 174.46 | P177: =AVERAGE(K177:M177) -> 200.33 | Q177: 6.8223 | R177: 7.4467 | S177: 0.62 | T177: 0.0353 | U177: 0.0691 | V177: 7.6462 | W177: 0.82 | X177: 0.0045 | Y177: 1.0000 | Z177: No | AA177: -12 | AB177: UCKL1 | AC177: uridine-cytidine kinase 1 like 1 | AD177: Yes | AE177: Yes | AF177: Yes | AG177: Yes | AH177: No | AI177: No | AJ177: No
A178: 2 | B178: 218270250 | C178: 218270450 | D178: 201 | E178: 1187.03 | F178: 922.47 | G178: 1394.64 | H178: 1977.14 | I178: 1511.74 | J178: 2609.92 | K178: 2180.24 | L178: 1361.82 | M178: 2563.12 | N178: =AVERAGE(E178:G178) -> 1168.05 | O178: =AVERAGE(H178:J178) -> 2032.93 | P178: =AVERAGE(K178:M178) -> 2035.06 | Q178: 10.1899 | R178: 10.9893 | S178: 0.80 | T178: 0.0018 | U178: 0.0240 | V178: 10.9909 | W178: 0.80 | X178: 0.0046 | Y178: 0.0942 | Z178: Yes | AA178: -169 | AB178: PNKD | AC178: PNKD metallo-beta-lactamase domain containing | AD178: Yes | AE178: No | AF178: No | AG178: Yes | AH178: No | AI178: No | AJ178: No
A179: 12 | B179: 109573558 | C179: 109573758 | D179: 201 | E179: 900.95 | F179: 822.10 | G179: 1119.77 | H179: 1426.72 | I179: 1283.30 | J179: 2183.12 | K179: 1716.03 | L179: 1138.95 | M179: 2060.25 | N179: =AVERAGE(E179:G179) -> 947.60 | O179: =AVERAGE(H179:J179) -> 1631.05 | P179: =AVERAGE(K179:M179) -> 1638.41 | Q179: 9.8881 | R179: 10.6716 | S179: 0.78 | T179: 0.0019 | U179: 0.0240 | V179: 10.6781 | W179: 0.79 | X179: 0.0046 | Y179: 0.0942 | Z179: Yes | AA179: -136 | AB179: MVK | AC179: mevalonate kinase | AD179: Yes | AE179: No | AF179: No | AG179: Yes | AH179: No | AI179: No | AJ179: No
A180: 19 | B180: 909280 | C180: 909480 | D180: 201 | E180: 269.25 | F180: 230.38 | G180: 299.66 | H180: 355.26 | I180: 423.38 | J180: 608.10 | K180: 453.38 | L180: 362.74 | M180: 583.08 | N180: =AVERAGE(E180:G180) -> 266.43 | O180: =AVERAGE(H180:J180) -> 462.25 | P180: =AVERAGE(K180:M180) -> 466.40 | Q180: 8.0576 | R180: 8.8525 | S180: 0.79 | T180: 0.0023 | U180: 0.0241 | V180: 8.8654 | W180: 0.81 | X180: 0.0046 | Y180: 0.0942 | Z180: Yes | AA180: 3839 | AB180: R3HDM4 | AC180: R3H domain containing 4 | AD180: Yes | AE180: No | AF180: No | AG180: No | AH180: Yes | AI180: No | AJ180: No
A181: 17 | B181: 29761404 | C181: 29761604 | D181: 201 | E181: 350.80 | F181: 248.54 | G181: 439.35 | H181: 575.05 | I181: 560.92 | J181: 447.58 | K181: 625.14 | L181: 470.33 | M181: 835.45 | N181: =AVERAGE(E181:G181) -> 346.23 | O181: =AVERAGE(H181:J181) -> 527.85 | P181: =AVERAGE(K181:M181) -> 643.64 | Q181: 8.4356 | R181: 9.0440 | S181: 0.61 | T181: 0.0175 | U181: 0.0466 | V181: 9.3301 | W181: 0.89 | X181: 0.0046 | Y181: 0.0942 | Z181: Yes | AA181: -72 | AB181: SSH2 | AC181: slingshot protein phosphatase 2 | AD181: Yes | AE181: No | AF181: No | AG181: Yes | AH181: No | AI181: No | AJ181: No
A182: 8 | B182: 140099088 | C182: 140099288 | D182: 201 | E182: 322.32 | F182: 326.93 | G182: 357.48 | H182: 488.84 | I182: 452.09 | J182: 615.65 | K182: 589.55 | L182: 442.67 | M182: 690.03 | N182: =AVERAGE(E182:G182) -> 335.58 | O182: =AVERAGE(H182:J182) -> 518.86 | P182: =AVERAGE(K182:M182) -> 574.08 | Q182: 8.3905 | R182: 9.0192 | S182: 0.63 | T182: 0.0054 | U182: 0.0282 | V182: 9.1651 | W182: 0.77 | X182: 0.0046 | Y182: 0.0942 | Z182: Yes | AA182: 1347 | AB182: PEG13 | AC182: paternally expressed 13 | AD182: No | AE182: No | AF182: No | AG182: No | AH182: Yes | AI182: No | AJ182: No
A183: X | B183: 56813404 | C183: 56813604 | D183: 201 | E183: 97.09 | F183: 76.47 | G183: 84.87 | H183: 138.31 | I183: 151.89 | J183: 173.74 | K183: 167.12 | L183: 124.50 | M183: 168.40 | N183: =AVERAGE(E183:G183) -> 86.14 | O183: =AVERAGE(H183:J183) -> 154.65 | P183: =AVERAGE(K183:M183) -> 153.34 | Q183: 6.4286 | R183: 7.2729 | S183: 0.84 | T183: 0.0023 | U183: 0.0241 | V183: 7.2606 | W183: 0.83 | X183: 0.0046 | Y183: 1.0000 | Z183: No | AA183: -75920 | AB183: UQCRBP1 | AC183: ubiquinol-cytochrome c reductase binding protein pseudogene 1 | AD183: No | AE183: No | AF183: No | AG183: No | AH183: No | AI183: Yes | AJ183: No
A184: 10 | B184: 102918040 | C184: 102918240 | D184: 201 | E184: 924.25 | F184: 569.73 | G184: 1036.41 | H184: 1642.72 | I184: 1485.42 | J184: 1537.25 | K184: 1720.67 | L184: 1169.69 | M184: 1576.62 | N184: =AVERAGE(E184:G184) -> 843.46 | O184: =AVERAGE(H184:J184) -> 1555.13 | P184: =AVERAGE(K184:M184) -> 1488.99 | Q184: 9.7202 | R184: 10.6028 | S184: 0.88 | T184: 0.0003 | U184: 0.0240 | V184: 10.5401 | W184: 0.82 | X184: 0.0047 | Y184: 0.0942 | Z184: Yes | AA184: -154 | AB184: CNNM2 | AC184: cyclin and CBS domain divalent metal cation transport mediator 2 | AD184: Yes | AE184: No | AF184: No | AG184: Yes | AH184: No | AI184: No | AJ184: No
A185: 6 | B185: 26272874 | C185: 26273074 | D185: 201 | E185: 214.88 | F185: 167.29 | G185: 261.35 | H185: 328.73 | I185: 351.62 | J185: 449.47 | K185: 413.15 | L185: 273.59 | M185: 495.83 | N185: =AVERAGE(E185:G185) -> 214.51 | O185: =AVERAGE(H185:J185) -> 376.61 | P185: =AVERAGE(K185:M185) -> 394.19 | Q185: 7.7449 | R185: 8.5569 | S185: 0.81 | T185: 0.0017 | U185: 0.0240 | V185: 8.6227 | W185: 0.88 | X185: 0.0047 | Y185: 0.0942 | Z185: Yes | AA185: 43 | AB185: H2BC10 | AC185: H2B clustered histone 10 | AD185: Yes | AE185: No | AF185: No | AG185: Yes | AH185: No | AI185: No | AJ185: No
A186: 19 | B186: 36115264 | C186: 36115464 | D186: 201 | E186: 928.13 | F186: 647.16 | G186: 1064.19 | H186: 1647.46 | I186: 1290.48 | J186: 1754.43 | K186: 1584.51 | L186: 1186.59 | M186: 1774.57 | N186: =AVERAGE(E186:G186) -> 879.83 | O186: =AVERAGE(H186:J186) -> 1564.12 | P186: =AVERAGE(K186:M186) -> 1515.22 | Q186: 9.7811 | R186: 10.6111 | S186: 0.83 | T186: 0.0006 | U186: 0.0240 | V186: 10.5653 | W186: 0.78 | X186: 0.0047 | Y186: 0.0942 | Z186: Yes | AA186: -104 | AB186: TBCB | AC186: tubulin folding cofactor B | AD186: Yes | AE186: No | AF186: No | AG186: Yes | AH186: No | AI186: No | AJ186: No
A187: 9 | B187: 129884465 | C187: 129884665 | D187: 201 | E187: 315.85 | F187: 252.36 | G187: 362.74 | H187: 513.47 | I187: 519.06 | J187: 530.67 | K187: 529.20 | L187: 430.37 | M187: 677.37 | N187: =AVERAGE(E187:G187) -> 310.32 | O187: =AVERAGE(H187:J187) -> 521.07 | P187: =AVERAGE(K187:M187) -> 545.65 | Q187: 8.2776 | R187: 9.0253 | S187: 0.75 | T187: 0.0010 | U187: 0.0240 | V187: 9.0918 | W187: 0.81 | X187: 0.0047 | Y187: 0.0942 | Z187: Yes | AA187: 14960 | AB187: MIR6855 | AC187: microRNA 6855 | AD187: No | AE187: No | AF187: No | AG187: No | AH187: No | AI187: Yes | AJ187: No
A188: 1 | B188: 169485976 | C188: 169486176 | D188: 201 | E188: 142.39 | F188: 192.14 | G188: 190.76 | H188: 267.16 | I188: 279.86 | J188: 383.37 | K188: 298.64 | L188: 250.54 | M188: 365.42 | N188: =AVERAGE(E188:G188) -> 175.10 | O188: =AVERAGE(H188:J188) -> 310.13 | P188: =AVERAGE(K188:M188) -> 304.87 | Q188: 7.4520 | R188: 8.2767 | S188: 0.82 | T188: 0.0015 | U188: 0.0240 | V188: 8.2520 | W188: 0.80 | X188: 0.0047 | Y188: 0.0942 | Z188: Yes | AA188: -106 | AB188: SLC19A2 | AC188: solute carrier family 19 member 2 | AD188: Yes | AE188: No | AF188: No | AG188: Yes | AH188: No | AI188: No | AJ188: Yes
A189: 16 | B189: 72008590 | C189: 72008790 | D189: 201 | E189: 499.67 | F189: 476.05 | G189: 635.36 | H189: 784.41 | I189: 735.54 | J189: 1118.00 | K189: 936.16 | L189: 687.06 | M189: 1221.51 | N189: =AVERAGE(E189:G189) -> 537.03 | O189: =AVERAGE(H189:J189) -> 879.32 | P189: =AVERAGE(K189:M189) -> 948.24 | Q189: 9.0688 | R189: 9.7802 | S189: 0.71 | T189: 0.0032 | U189: 0.0249 | V189: 9.8891 | W189: 0.82 | X189: 0.0047 | Y189: 0.0942 | Z189: Yes | AA189: -54 | AB189: DHODH | AC189: dihydroorotate dehydrogenase (quinone) | AD189: Yes | AE189: No | AF189: No | AG189: Yes | AH189: No | AI189: No | AJ189: No
A190: X | B190: 23907961 | C190: 23908161 | D190: 201 | E190: 317.14 | F190: 277.22 | G190: 380.77 | H190: 550.42 | I190: 515.47 | J190: 536.34 | K190: 657.63 | L190: 439.59 | M190: 593.87 | N190: =AVERAGE(E190:G190) -> 325.04 | O190: =AVERAGE(H190:J190) -> 534.08 | P190: =AVERAGE(K190:M190) -> 563.70 | Q190: 8.3445 | R190: 9.0609 | S190: 0.72 | T190: 0.0013 | U190: 0.0240 | V190: 9.1388 | W190: 0.79 | X190: 0.0047 | Y190: 0.0942 | Z190: Yes | AA190: 55 | AB190: CXorf58 | AC190: chromosome X open reading frame 58 | AD190: Yes | AE190: No | AF190: Yes | AG190: Yes | AH190: No | AI190: No | AJ190: No
A191: 1 | B191: 47437960 | C191: 47438160 | D191: 201 | E191: 32.36 | F191: 13.38 | G191: 24.78 | H191: 29.37 | I191: 66.98 | J191: 15.11 | K191: 71.18 | L191: 43.04 | M191: 47.85 | N191: =AVERAGE(E191:G191) -> 23.51 | O191: =AVERAGE(H191:J191) -> 37.15 | P191: =AVERAGE(K191:M191) -> 54.02 | Q191: 4.5552 | R191: 5.2153 | S191: 0.66 | T191: 0.1919 | U191: 1.0000 | V191: 5.7555 | W191: 1.20 | X191: 0.0047 | Y191: 1.0000 | Z191: No | AA191: 16 | AB191: FOXD2 | AC191: forkhead box D2 | AD191: Yes | AE191: No | AF191: No | AG191: Yes | AH191: No | AI191: No | AJ191: Yes
A192: 5 | B192: 36876604 | C192: 36876804 | D192: 201 | E192: 179.93 | F192: 138.61 | G192: 260.60 | H192: 336.31 | I192: 406.64 | J192: 436.25 | K192: 416.24 | L192: 253.61 | M192: 425.47 | N192: =AVERAGE(E192:G192) -> 193.05 | O192: =AVERAGE(H192:J192) -> 393.07 | P192: =AVERAGE(K192:M192) -> 365.11 | Q192: 7.5928 | R192: 8.6186 | S192: 1.03 | T192: 0.0002 | U192: 0.0240 | V192: 8.5122 | W192: 0.92 | X192: 0.0047 | Y192: 0.0942 | Z192: Yes | AA192: -10 | AB192: NIPBL-DT | AC192: NIPBL divergent transcript | AD192: No | AE192: No | AF192: No | AG192: Yes | AH192: No | AI192: No | AJ192: No
A193: 1 | B193: 185317128 | C193: 185317328 | D193: 201 | E193: 81.55 | F193: 78.39 | G193: 99.89 | H193: 173.37 | I193: 233.22 | J193: 86.87 | K193: 171.76 | L193: 124.50 | M193: 170.28 | N193: =AVERAGE(E193:G193) -> 86.61 | O193: =AVERAGE(H193:J193) -> 164.49 | P193: =AVERAGE(K193:M193) -> 155.51 | Q193: 6.4364 | R193: 7.3618 | S193: 0.93 | T193: 0.0061 | U193: 0.0293 | V193: 7.2809 | W193: 0.84 | X193: 0.0048 | Y193: 1.0000 | Z193: No | AA193: 15 | AB193: IVNS1ABP | AC193: influenza virus NS1A binding protein | AD193: Yes | AE193: No | AF193: No | AG193: Yes | AH193: No | AI193: No | AJ193: No
A194: 17 | B194: 67377235 | C194: 67377435 | D194: 201 | E194: 134.62 | F194: 99.42 | G194: 166.73 | H194: 250.10 | I194: 271.49 | J194: 158.63 | K194: 252.22 | L194: 185.98 | M194: 292.24 | N194: =AVERAGE(E194:G194) -> 133.59 | O194: =AVERAGE(H194:J194) -> 226.74 | P194: =AVERAGE(K194:M194) -> 243.48 | Q194: 7.0617 | R194: 7.8249 | S194: 0.76 | T194: 0.0089 | U194: 0.0338 | V194: 7.9277 | W194: 0.87 | X194: 0.0048 | Y194: 0.0942 | Z194: No | AA194: 54 | AB194: PITPNC1 | AC194: phosphatidylinositol transfer protein cytoplasmic 1 | AD194: Yes | AE194: No | AF194: No | AG194: Yes | AH194: No | AI194: No | AJ194: No
A195: 1 | B195: 8817653 | C195: 8817853 | D195: 201 | E195: 315.85 | F195: 218.91 | G195: 435.59 | H195: 677.36 | I195: 607.56 | J195: 576.00 | K195: 673.11 | L195: 430.37 | M195: 733.66 | N195: =AVERAGE(E195:G195) -> 323.45 | O195: =AVERAGE(H195:J195) -> 620.31 | P195: =AVERAGE(K195:M195) -> 612.38 | Q195: 8.3374 | R195: 9.2768 | S195: 0.94 | T195: 0.0004 | U195: 0.0240 | V195: 9.2583 | W195: 0.92 | X195: 0.0048 | Y195: 0.0942 | Z195: Yes | AA195: -113 | AB195: RERE | AC195: arginine-glutamic acid dipeptide repeats | AD195: Yes | AE195: No | AF195: Yes | AG195: Yes | AH195: No | AI195: No | AJ195: No
A196: 3 | B196: 16511936 | C196: 16512136 | D196: 201 | E196: 176.05 | F196: 179.71 | G196: 177.24 | H196: 315.47 | I196: 307.37 | J196: 362.59 | K196: 301.74 | L196: 232.09 | M196: 397.79 | N196: =AVERAGE(E196:G196) -> 177.67 | O196: =AVERAGE(H196:J196) -> 328.48 | P196: =AVERAGE(K196:M196) -> 310.54 | Q196: 7.4730 | R196: 8.3597 | S196: 0.89 | T196: 0.0001 | U196: 0.0240 | V196: 8.2786 | W196: 0.81 | X196: 0.0048 | Y196: 0.0942 | Z196: Yes | AA196: 1663 | AB196: RFTN1 | AC196: raftlin, lipid raft linker 1 | AD196: Yes | AE196: No | AF196: No | AG196: No | AH196: Yes | AI196: No | AJ196: No
A197: 9 | B197: 135500487 | C197: 135500687 | D197: 201 | E197: 124.27 | F197: 95.59 | G197: 166.73 | H197: 263.37 | I197: 283.45 | J197: 141.64 | K197: 235.20 | L197: 187.52 | M197: 284.74 | N197: =AVERAGE(E197:G197) -> 128.86 | O197: =AVERAGE(H197:J197) -> 229.48 | P197: =AVERAGE(K197:M197) -> 235.82 | Q197: 7.0097 | R197: 7.8423 | S197: 0.83 | T197: 0.0076 | U197: 0.0317 | V197: 7.8815 | W197: 0.87 | X197: 0.0048 | Y197: 0.0942 | Z197: No | AA197: -95 | AB197: MRPS2 | AC197: mitochondrial ribosomal protein S2 | AD197: Yes | AE197: No | AF197: No | AG197: Yes | AH197: No | AI197: No | AJ197: Yes
A198: 2 | B198: 128027359 | C198: 128027559 | D198: 201 | E198: 880.24 | F198: 732.24 | G198: 923.00 | H198: 1472.19 | I198: 1136.19 | J198: 1650.56 | K198: 1578.32 | L198: 996.00 | M198: 1798.03 | N198: =AVERAGE(E198:G198) -> 845.16 | O198: =AVERAGE(H198:J198) -> 1419.65 | P198: =AVERAGE(K198:M198) -> 1457.45 | Q198: 9.7231 | R198: 10.4713 | S198: 0.75 | T198: 0.0008 | U198: 0.0240 | V198: 10.5092 | W198: 0.79 | X198: 0.0048 | Y198: 0.0942 | Z198: Yes | AA198: -153 | AB198: SAP130 | AC198: Sin3A associated protein 130 | AD198: Yes | AE198: No | AF198: No | AG198: Yes | AH198: No | AI198: No | AJ198: No
A199: 6 | B199: 42929272 | C199: 42929472 | D199: 201 | E199: 776.68 | F199: 588.85 | G199: 865.17 | H199: 1215.46 | I199: 1230.68 | J199: 1463.60 | K199: 1344.66 | L199: 1015.98 | M199: 1394.61 | N199: =AVERAGE(E199:G199) -> 743.57 | O199: =AVERAGE(H199:J199) -> 1303.24 | P199: =AVERAGE(K199:M199) -> 1251.75 | Q199: 9.5383 | R199: 10.3479 | S199: 0.81 | T199: 0.0003 | U199: 0.0240 | V199: 10.2897 | W199: 0.75 | X199: 0.0048 | Y199: 0.0942 | Z199: Yes | AA199: -108 | AB199: CNPY3-GNMT | AC199: CNPY3-GNMT readthrough | AD199: Yes | AE199: No | AF199: No | AG199: Yes | AH199: No | AI199: No | AJ199: Yes
A200: 2 | B200: 47906591 | C200: 47906791 | D200: 201 | E200: 856.94 | F200: 552.52 | G200: 1015.38 | H200: 1443.77 | I200: 1297.65 | J200: 1656.22 | K200: 1692.82 | L200: 1015.98 | M200: 1689.67 | N200: =AVERAGE(E200:G200) -> 808.28 | O200: =AVERAGE(H200:J200) -> 1465.88 | P200: =AVERAGE(K200:M200) -> 1466.16 | Q200: 9.6587 | R200: 10.5176 | S200: 0.86 | T200: 0.0006 | U200: 0.0240 | V200: 10.5178 | W200: 0.86 | X200: 0.0048 | Y200: 0.0942 | Z200: Yes | AA200: -193 | AB200: FBXO11 | AC200: F-box protein 11 | AD200: Yes | AE200: No | AF200: Yes | AG200: Yes | AH200: No | AI200: No | AJ200: No
... 2050 more rows
